Body Name,Document Number,Service,Type of Expenditure,Invoice Date,Supplier Name,Cost to the Council (Amount Exc VAT),Month
EREWASH BOROUGH COUNCIL,225376,Balance Sheet,COVID 19 - Additional Restrictions Grant,31/03/21,CRAZYFOREST LTD,393.00,Apr-21
EREWASH BOROUGH COUNCIL,225635,Balance Sheet,COVID 19 - Additional Restrictions Grant,31/03/21,THE KNITTING ROOM,393.00,Apr-21
EREWASH BOROUGH COUNCIL,225388,Balance Sheet,COVID 19 - Additional Restrictions Grant,31/03/21,SNAPE JOINERY LTD,393.00,Apr-21
EREWASH BOROUGH COUNCIL,225390,Balance Sheet,COVID 19 - Additional Restrictions Grant,31/03/21,TRUST JAMES DRIVING TUITION,393.00,Apr-21
EREWASH BOROUGH COUNCIL,225419,Balance Sheet,COVID 19 - Additional Restrictions Grant,31/03/21,ADVANCED AUTO RECOVERY,589.00,Apr-21
EREWASH BOROUGH COUNCIL,225434,Balance Sheet,COVID 19 - Additional Restrictions Grant,31/03/21,REDACTED PERSONAL DATA,393.00,Apr-21
EREWASH BOROUGH COUNCIL,225572,Balance Sheet,COVID 19 - Additional Restrictions Grant,31/03/21,T/A APPEARANCE HAIR & BEAUTY,393.00,Apr-21
EREWASH BOROUGH COUNCIL,225573,Balance Sheet,COVID 19 - Additional Restrictions Grant,31/03/21,JENSON PRESS PRINTERS,393.00,Apr-21
EREWASH BOROUGH COUNCIL,225576,Balance Sheet,COVID 19 - Additional Restrictions Grant,31/03/21,MI TIEMPO SKINCARE & BEAUTY,393.00,Apr-21
EREWASH BOROUGH COUNCIL,225697,Balance Sheet,COVID 19 - Additional Restrictions Grant,31/03/21,HOOPERS (DERBY) LTD,393.00,Apr-21
EREWASH BOROUGH COUNCIL,225703,Balance Sheet,COVID 19 - Additional Restrictions Grant,31/03/21,SM BEAUTY,393.00,Apr-21
EREWASH BOROUGH COUNCIL,225705,Balance Sheet,COVID 19 - Additional Restrictions Grant,31/03/21,JDB ENTERPRISES ILKESTON LTD,589.00,Apr-21
EREWASH BOROUGH COUNCIL,225441,Balance Sheet,COVID 19 - Additional Restrictions Grant,31/03/21,LIFE OF A BEAUTY GIRL MAKE UP ARTIST (SAM CAHILL),393.00,Apr-21
EREWASH BOROUGH COUNCIL,225460,Balance Sheet,COVID 19 - Additional Restrictions Grant,31/03/21,KENSINGTON CAR SALES LTD,393.00,Apr-21
EREWASH BOROUGH COUNCIL,225589,Balance Sheet,COVID 19 - Additional Restrictions Grant,31/03/21,BATTERED ILKESTON LTD,393.00,Apr-21
EREWASH BOROUGH COUNCIL,225590,Balance Sheet,COVID 19 - Additional Restrictions Grant,31/03/21,EAST MIDLANDS MEDICAL SERVICES LTD,393.00,Apr-21
EREWASH BOROUGH COUNCIL,225597,Balance Sheet,COVID 19 - Additional Restrictions Grant,31/03/21,HH AND SPOOKY NIGHTS LTD,393.00,Apr-21
EREWASH BOROUGH COUNCIL,225599,Balance Sheet,COVID 19 - Additional Restrictions Grant,31/03/21,IAN HANDS CONSULTANCY LTD,393.00,Apr-21
EREWASH BOROUGH COUNCIL,225604,Balance Sheet,COVID 19 - Additional Restrictions Grant,31/03/21,STUARTS HAIR & BEAUTY.,393.00,Apr-21
EREWASH BOROUGH COUNCIL,225624,Balance Sheet,COVID 19 - Additional Restrictions Grant,31/03/21,REDACTED PERSONAL DATA,393.00,Apr-21
EREWASH BOROUGH COUNCIL,225627,Balance Sheet,COVID 19 - Additional Restrictions Grant,31/03/21,LEEN VALLEY PLANTS,393.00,Apr-21
EREWASH BOROUGH COUNCIL,225652,Balance Sheet,COVID 19 - Additional Restrictions Grant,31/03/21,CHECKMATE SOM,393.00,Apr-21
EREWASH BOROUGH COUNCIL,225667,Balance Sheet,COVID 19 - Additional Restrictions Grant,31/03/21,CALIPOLOGY LIMITED,393.00,Apr-21
EREWASH BOROUGH COUNCIL,225675,Balance Sheet,COVID 19 - Additional Restrictions Grant,31/03/21,REDACTED PERSONAL DATA,393.00,Apr-21
EREWASH BOROUGH COUNCIL,225676,Balance Sheet,COVID 19 - Additional Restrictions Grant,31/03/21,REDACTED PERSONAL DATA,393.00,Apr-21
EREWASH BOROUGH COUNCIL,225680,Balance Sheet,COVID 19 - Additional Restrictions Grant,31/03/21,MOORLEYS PRINT & PUBLISHING LIMITED,393.00,Apr-21
EREWASH BOROUGH COUNCIL,225681,Balance Sheet,COVID 19 - Additional Restrictions Grant,31/03/21,REDACTED PERSONAL DATA,393.00,Apr-21
EREWASH BOROUGH COUNCIL,225692,Balance Sheet,COVID 19 - Additional Restrictions Grant,31/03/21,REDACTED PERSONAL DATA,393.00,Apr-21
EREWASH BOROUGH COUNCIL,225469,Balance Sheet,COVID 19 - Additional Restrictions Grant,31/03/21,ELITE FINISHING,393.00,Apr-21
EREWASH BOROUGH COUNCIL,225470,Balance Sheet,COVID 19 - Additional Restrictions Grant,31/03/21,GRANT STIRLING TRAVEL LTD,393.00,Apr-21
EREWASH BOROUGH COUNCIL,225475,Balance Sheet,COVID 19 - Additional Restrictions Grant,31/03/21,HAIR BY NATALIE,393.00,Apr-21
EREWASH BOROUGH COUNCIL,225478,Balance Sheet,COVID 19 - Additional Restrictions Grant,31/03/21,SHINE HAIR BY DAYNA,393.00,Apr-21
EREWASH BOROUGH COUNCIL,225497,Balance Sheet,COVID 19 - Additional Restrictions Grant,31/03/21,REDACTED PERSONAL DATA,393.00,Apr-21
EREWASH BOROUGH COUNCIL,225501,Balance Sheet,COVID 19 - Additional Restrictions Grant,31/03/21,ILKESTON TYRE SERVICES,393.00,Apr-21
EREWASH BOROUGH COUNCIL,225536,Balance Sheet,COVID 19 - Additional Restrictions Grant,31/03/21,EMMA HARRIS LINGERIE LTD,393.00,Apr-21
EREWASH BOROUGH COUNCIL,225538,Balance Sheet,COVID 19 - Additional Restrictions Grant,31/03/21,A-UNIT LIMITED,393.00,Apr-21
EREWASH BOROUGH COUNCIL,225553,Balance Sheet,COVID 19 - Additional Restrictions Grant,31/03/21,PETSTAY DERBY,393.00,Apr-21
EREWASH BOROUGH COUNCIL,226330,Balance Sheet,COVID 19 - Additional Restrictions Grant,28/04/21,STRETCH FIT PILATES & THERAPY LTD,"1,964.00",Apr-21
EREWASH BOROUGH COUNCIL,226372,Balance Sheet,COVID 19 - Additional Restrictions Grant,29/04/21,REDACTED PERSONAL DATA,"3,464.00",Apr-21
EREWASH BOROUGH COUNCIL,226340,Balance Sheet,COVID 19 - Additional Restrictions Grant,29/04/21,REDACTED PERSONAL DATA,"1,732.00",Apr-21
EREWASH BOROUGH COUNCIL,226346,Balance Sheet,COVID 19 - Additional Restrictions Grant,29/04/21,REDACTED PERSONAL DATA,"3,464.00",Apr-21
EREWASH BOROUGH COUNCIL,226348,Balance Sheet,COVID 19 - Additional Restrictions Grant,29/04/21,REDACTED PERSONAL DATA,"3,464.00",Apr-21
EREWASH BOROUGH COUNCIL,226363,Balance Sheet,COVID 19 - Additional Restrictions Grant,29/04/21,KITCHEN PREP UK LIMITED,"3,464.00",Apr-21
EREWASH BOROUGH COUNCIL,226120,Balance Sheet,Payroll Collection A/c - AVCS,20/04/21,PRUDENTIAL,"2,655.66",Apr-21
EREWASH BOROUGH COUNCIL,225854,Green Space,Project Grants,26/03/21,PLAYDALE PLAYGROUNDS LTD,131.96,Apr-21
EREWASH BOROUGH COUNCIL,225323,"Police, Crime Commissioner Community Safety Grant",Project Grants,17/03/21,SOLON SECURITY LTD,"2,574.00",Apr-21
EREWASH BOROUGH COUNCIL,226234,Car Parking,Reactive Maintenance,05/04/21,N B CONSTRUCTION,350.00,Apr-21
EREWASH BOROUGH COUNCIL,224891,Property and Estates,Reactive Maintenance,10/03/21,MDB PLUMBING (NOTTM) LTD,334.48,Apr-21
EREWASH BOROUGH COUNCIL,224892,Property and Estates,Reactive Maintenance,10/03/21,MDB PLUMBING (NOTTM) LTD,355.06,Apr-21
EREWASH BOROUGH COUNCIL,225825,Property and Estates,Reactive Maintenance,31/03/21,ALPHA PARTNER (MIDLANDS)  LIMITED,320.00,Apr-21
EREWASH BOROUGH COUNCIL,225953,Rutland Sports Park,PPM Mechanical and Equipment,06/04/21,CONCEPT ELEVATORS (UK) LTD,53.00,Apr-21
EREWASH BOROUGH COUNCIL,225914,Property and Estates,PPM Mechanical and Equipment,31/03/21,ORTON MECHANICAL SERVICES,"1,362.03",Apr-21
EREWASH BOROUGH COUNCIL,226173,Green Space,Repairs and Maintenance,31/03/21,COUNTRYWIDE MIDLANDS LIMITED,381.60,Apr-21
EREWASH BOROUGH COUNCIL,226100,Household/Residual Waste Collection,Repairs and Maintenance,13/04/21,DENNIS EAGLE LTD,"1,060.62",Apr-21
EREWASH BOROUGH COUNCIL,226165,Household/Residual Waste Collection,Repairs and Maintenance,31/03/21,WILLIAM WEST & SONS (ILKESTON) LIMITED,675.72,Apr-21
EREWASH BOROUGH COUNCIL,225325,Household/Residual Waste Collection,Repairs and Maintenance,26/03/21,T P HOPWELL (BIRMINGHAM) LTD,538.34,Apr-21
EREWASH BOROUGH COUNCIL,225870,Household/Residual Waste Collection,Repairs and Maintenance,31/03/21,VEHICLE WEIGHING SOLUTIONS,242.00,Apr-21
EREWASH BOROUGH COUNCIL,225860,Green Space,Tyres,27/02/21,LODGE TYRE COMPANY LTD,735.50,Apr-21
EREWASH BOROUGH COUNCIL,225920,Trade Waste,Tyres,31/03/21,LODGE TYRE COMPANY LTD,535.10,Apr-21
EREWASH BOROUGH COUNCIL,225720,Procurement Services,Travelling and Subsistence,29/03/21,CHARTERED INSTITUTE OF PUBLIC FINANCE & ACCOUNTANCY,245.00,Apr-21
EREWASH BOROUGH COUNCIL,225277,Green Space,General Equipment,12/03/21,TUDOR ENVIRONMENTAL,"1,020.00",Apr-21
EREWASH BOROUGH COUNCIL,225805,Green Space,Materials/Consumables,26/03/21,PROTECTIVE WEAR SUPPLIES LTD,240.20,Apr-21
EREWASH BOROUGH COUNCIL,224871,Public Conveniences,Materials/Consumables,23/03/21,NOW U KNOW TRAINING LTD,642.77,Apr-21
EREWASH BOROUGH COUNCIL,226143,Neighbourhood Wardens,Uniforms,01/04/21,EREWASH PARTNERSHIP LTD,205.92,Apr-21
EREWASH BOROUGH COUNCIL,225985,Homelessness,Temporary Accommodation,01/04/21,NOVOTEL NOTTINGHAM,"1,328.66",Apr-21
EREWASH BOROUGH COUNCIL,225988,Homelessness,Temporary Accommodation,25/03/21,NOVOTEL NOTTINGHAM,714.30,Apr-21
EREWASH BOROUGH COUNCIL,226011,Homelessness,Temporary Accommodation,23/03/21,TUDOR LODGE HOTEL,291.67,Apr-21
EREWASH BOROUGH COUNCIL,225909,Merlin Way Depot - Ilkeston,Sanitary Services,31/03/21,RENTOKIL INITIAL SERVICES LIMITED,18.16,Apr-21
EREWASH BOROUGH COUNCIL,225909,Public Conveniences,Sanitary Services,31/03/21,RENTOKIL INITIAL SERVICES LIMITED,119.75,Apr-21
EREWASH BOROUGH COUNCIL,225785,Revenues and Benefits,Postages,24/03/21,ROYAL MAIL GROUP LTD.,"1,600.48",Apr-21
EREWASH BOROUGH COUNCIL,226181,Transport Trading Account,Software Licences,30/03/21,FUEL LINK SYSTEMS,525.00,Apr-21
EREWASH BOROUGH COUNCIL,225918,ICT Support Services,Telephones,22/03/21,BRITISH TELECOMMUNICATIONS PLC,"1,620.41",Apr-21
EREWASH BOROUGH COUNCIL,226047,Community Grants,Grants and Subscriptions,14/04/21,ILKESTON RUTLAND CRICKET CLUB,250.00,Apr-21
EREWASH BOROUGH COUNCIL,225880,Building Control - Fee Earning,Subscriptions,05/03/21,LABC,"4,244.58",Apr-21
EREWASH BOROUGH COUNCIL,226118,Council Tax Collection,Fees Costs and Expenses,14/04/21,WILKIN CHAPMAN LLP,"1,591.10",Apr-21
EREWASH BOROUGH COUNCIL,225739,Kerbside Dry Recycling Collection,Waste Disposal,28/02/21,GAE SMITH HOLDINGS T/A CASEPAK,"41,022.15",Apr-21
EREWASH BOROUGH COUNCIL,225203,Parish Council Concurrent Functions,Sawley - Precept,26/03/21,SAWLEY PARISH COUNCIL,"2,121.00",Apr-21
EREWASH BOROUGH COUNCIL,225205,Parish Precepts,Stanton by Dale - Precept,26/03/21,STANTON-BY-DALE PARISH COUNCIL,"7,159.20",Apr-21
EREWASH BOROUGH COUNCIL,225857,Hackney Carriages / Private Hire,Hackney Carriage Vehicle License,06/04/21,REDACTED PERSONAL DATA,245.50,Apr-21
EREWASH BOROUGH COUNCIL,226075,Residents Parking Scheme,Season Tickets,07/04/21,DERBYSHIRE COUNTY COUNCIL...,"5,676.85",Apr-21
EREWASH BOROUGH COUNCIL,225955,Watercourse Maintenance,Contracted Services,18/02/21,ACTON TIMBER YARD LIMITED,300.00,Apr-21
EREWASH BOROUGH COUNCIL,226184,CCTV - Ilkeston and Long Eaton,Contracted Services,06/04/21,BT REDCARE,"9,739.64",Apr-21
EREWASH BOROUGH COUNCIL,225044,Green Space,Contracted Services,18/03/21,HAGSSMP,593.60,Apr-21
EREWASH BOROUGH COUNCIL,225840,Neighbourhood Wardens,Contracted Services,07/03/21,EFFECTIVE SECURITY SERVICES LTD,"3,224.00",Apr-21
EREWASH BOROUGH COUNCIL,225931,Transport Trading Account,Agency Staff,22/03/21,QUESTECH RECRUITMENT LTD,906.50,Apr-21
EREWASH BOROUGH COUNCIL,225741,Urban Renewal,Agency Staff,24/02/21,OSBORNE RICHARDSON,"1,258.00",Apr-21
EREWASH BOROUGH COUNCIL,226126,Kerbside Dry Recycling Collection,Agency Staff,14/04/21,THORN BAKER LIMITED,"1,432.51",Apr-21
EREWASH BOROUGH COUNCIL,225935,Green Space,Agency Staff,22/03/21,EXTRA PERSONNEL LTD,"2,268.62",Apr-21
EREWASH BOROUGH COUNCIL,226025,Green Space,Agency Staff,29/03/21,EXTRA PERSONNEL LTD,"2,109.73",Apr-21
EREWASH BOROUGH COUNCIL,226026,Green Space,Agency Staff,29/03/21,EXTRA PERSONNEL LTD,"1,928.21",Apr-21
EREWASH BOROUGH COUNCIL,226273,Green Space,Agency Staff,05/04/21,EXTRA PERSONNEL LTD,"1,839.77",Apr-21
EREWASH BOROUGH COUNCIL,225935,Street Scene,Agency Staff,22/03/21,EXTRA PERSONNEL LTD,"2,224.62",Apr-21
EREWASH BOROUGH COUNCIL,226273,Street Scene,Agency Staff,05/04/21,EXTRA PERSONNEL LTD,"1,839.76",Apr-21
EREWASH BOROUGH COUNCIL,226279,Street Scene,Agency Staff,12/04/21,EXTRA PERSONNEL LTD,"2,315.36",Apr-21
EREWASH BOROUGH COUNCIL,226024,Household/Residual Waste Collection,Agency Staff,27/03/21,WORKCHAIN LTD,"1,615.27",Apr-21
EREWASH BOROUGH COUNCIL,225752,Kerbside Dry Recycling Collection,Agency Staff,20/03/21,WORKCHAIN LTD,834.93,Apr-21
EREWASH BOROUGH COUNCIL,225828,Household/Residual Waste Collection,Agency Staff,18/03/21,QUALITY SERVICE RECRUITMENT LTD,583.63,Apr-21
EREWASH BOROUGH COUNCIL,225804,Street Scene,Training,17/03/21,ARGROVISTA UK LTD,350.90,Apr-21
EREWASH BOROUGH COUNCIL,225317,Property and Estates,Repairs and Maintenance,27/03/21,ALPHA PARTNER (MIDLANDS)  LIMITED,"1,880.00",Apr-21
EREWASH BOROUGH COUNCIL,225937,Civic Accommodation - Long Eaton,Window Cleaning,06/04/21,EXCEL CLEANING SOLUTIONS LIMITED,235.00,Apr-21
EREWASH BOROUGH COUNCIL,225055,Civic Accommodation - Long Eaton,Electricity,15/03/21,TOTAL GAS & POWER LTD,20.04,Apr-21
EREWASH BOROUGH COUNCIL,225055,Ilkeston Market,Electricity,15/03/21,TOTAL GAS & POWER LTD,359.92,Apr-21
EREWASH BOROUGH COUNCIL,225055,CCTV - Ilkeston and Long Eaton,Electricity,15/03/21,TOTAL GAS & POWER LTD,315.27,Apr-21
EREWASH BOROUGH COUNCIL,225055,Cotmanhay Pavilion,Electricity,15/03/21,TOTAL GAS & POWER LTD,57.95,Apr-21
EREWASH BOROUGH COUNCIL,225075,Bridge House - Long Eaton,Gas,12/03/21,TOTAL GAS & POWER LTD,234.68,Apr-21
EREWASH BOROUGH COUNCIL,226295,Civic Accommodation - Long Eaton,Metered Water,01/04/21,SCOTTISH WATER BUSINESS STREAM LIMITED,119.10,Apr-21
EREWASH BOROUGH COUNCIL,226295,Shopmobility - Long Eaton,Metered Water,01/04/21,SCOTTISH WATER BUSINESS STREAM LIMITED,11.99,Apr-21
EREWASH BOROUGH COUNCIL,225735,Corporate Health and Safety,Water Testing (Legionella),26/02/21,STERILIZING SERVICES LTD,"1,331.00",Apr-21
EREWASH BOROUGH COUNCIL,225347,Balance Sheet,ICT Works,28/03/21,MACILDOWIE RECRUITMENT EXPERTISE,"1,263.18",Apr-21
EREWASH BOROUGH COUNCIL,225378,Balance Sheet,COVID 19 - Additional Restrictions Grant,31/03/21,REDACTED PERSONAL DATA,393.00,Apr-21
EREWASH BOROUGH COUNCIL,225638,Balance Sheet,COVID 19 - Additional Restrictions Grant,31/03/21,POWER BOX CREATIVE,393.00,Apr-21
EREWASH BOROUGH COUNCIL,225640,Balance Sheet,COVID 19 - Additional Restrictions Grant,31/03/21,REDACTED PERSONAL DATA,393.00,Apr-21
EREWASH BOROUGH COUNCIL,225647,Balance Sheet,COVID 19 - Additional Restrictions Grant,31/03/21,SIGN FORGE LIMITED,393.00,Apr-21
EREWASH BOROUGH COUNCIL,225648,Balance Sheet,COVID 19 - Additional Restrictions Grant,31/03/21,R B HAIR,393.00,Apr-21
EREWASH BOROUGH COUNCIL,225391,Balance Sheet,COVID 19 - Additional Restrictions Grant,31/03/21,GOULD BARBERS (EAST ANGLIA) LTD,393.00,Apr-21
EREWASH BOROUGH COUNCIL,225402,Balance Sheet,COVID 19 - Additional Restrictions Grant,31/03/21,AIRVEND UL LTD,393.00,Apr-21
EREWASH BOROUGH COUNCIL,225404,Balance Sheet,COVID 19 - Additional Restrictions Grant,31/03/21,ITS INTERN TRANSPORT SYSTEM (UK) LTD,393.00,Apr-21
EREWASH BOROUGH COUNCIL,225409,Balance Sheet,COVID 19 - Additional Restrictions Grant,31/03/21,REDACTED PERSONAL DATA,393.00,Apr-21
EREWASH BOROUGH COUNCIL,225427,Balance Sheet,COVID 19 - Additional Restrictions Grant,31/03/21,REDACTED PERSONAL DATA,393.00,Apr-21
EREWASH BOROUGH COUNCIL,225567,Balance Sheet,COVID 19 - Additional Restrictions Grant,31/03/21,DOUBLE APEX TV LTD,393.00,Apr-21
EREWASH BOROUGH COUNCIL,225699,Balance Sheet,COVID 19 - Additional Restrictions Grant,31/03/21,REDACTED PERSONAL DATA,393.00,Apr-21
EREWASH BOROUGH COUNCIL,225713,Balance Sheet,COVID 19 - Additional Restrictions Grant,31/03/21,V M HAIRDRESSING,393.00,Apr-21
EREWASH BOROUGH COUNCIL,225714,Balance Sheet,COVID 19 - Additional Restrictions Grant,31/03/21,REDACTED PERSONAL DATA,393.00,Apr-21
EREWASH BOROUGH COUNCIL,225718,Balance Sheet,COVID 19 - Additional Restrictions Grant,31/03/21,G AND V CARS LTD,"5,464.00",Apr-21
EREWASH BOROUGH COUNCIL,225451,Balance Sheet,COVID 19 - Additional Restrictions Grant,31/03/21,RTRIIBE,393.00,Apr-21
EREWASH BOROUGH COUNCIL,225462,Balance Sheet,COVID 19 - Additional Restrictions Grant,31/03/21,REDACTED PERSONAL DATA,393.00,Apr-21
EREWASH BOROUGH COUNCIL,225583,Balance Sheet,COVID 19 - Additional Restrictions Grant,31/03/21,STYLISH HOMES (NOTTS) LTD,393.00,Apr-21
EREWASH BOROUGH COUNCIL,225601,Balance Sheet,COVID 19 - Additional Restrictions Grant,31/03/21,SAM@HEADROOM,393.00,Apr-21
EREWASH BOROUGH COUNCIL,225602,Balance Sheet,COVID 19 - Additional Restrictions Grant,31/03/21,UK BIKE FIT,393.00,Apr-21
EREWASH BOROUGH COUNCIL,225606,Balance Sheet,COVID 19 - Additional Restrictions Grant,31/03/21,TUCK ME UNDER LTD,393.00,Apr-21
EREWASH BOROUGH COUNCIL,225607,Balance Sheet,COVID 19 - Additional Restrictions Grant,31/03/21,AMS PLATINUM SERVICES LTD,393.00,Apr-21
EREWASH BOROUGH COUNCIL,225626,Balance Sheet,COVID 19 - Additional Restrictions Grant,31/03/21,SHARON STANSFIELD BRASS TUITION,393.00,Apr-21
EREWASH BOROUGH COUNCIL,225630,Balance Sheet,COVID 19 - Additional Restrictions Grant,31/03/21,ELITE CONNECT,393.00,Apr-21
EREWASH BOROUGH COUNCIL,225468,Balance Sheet,COVID 19 - Additional Restrictions Grant,31/03/21,GCWELLBEING LTD,393.00,Apr-21
EREWASH BOROUGH COUNCIL,225473,Balance Sheet,COVID 19 - Additional Restrictions Grant,31/03/21,IMPACT MARKETING AND PUBLICITY LTD,589.00,Apr-21
EREWASH BOROUGH COUNCIL,225476,Balance Sheet,COVID 19 - Additional Restrictions Grant,31/03/21,MIDLAND CARAVANS LIMITED,589.00,Apr-21
EREWASH BOROUGH COUNCIL,225486,Balance Sheet,COVID 19 - Additional Restrictions Grant,31/03/21,ROLL WITH IT SANDWICH SHOP,393.00,Apr-21
EREWASH BOROUGH COUNCIL,225487,Balance Sheet,COVID 19 - Additional Restrictions Grant,31/03/21,ST LAURENCE PRE-SCHOOL & CLUB 11 LTD,589.00,Apr-21
EREWASH BOROUGH COUNCIL,225488,Balance Sheet,COVID 19 - Additional Restrictions Grant,31/03/21,REDACTED PERSONAL DATA,393.00,Apr-21
EREWASH BOROUGH COUNCIL,225493,Balance Sheet,COVID 19 - Additional Restrictions Grant,31/03/21,REDACTED PERSONAL DATA,393.00,Apr-21
EREWASH BOROUGH COUNCIL,225500,Balance Sheet,COVID 19 - Additional Restrictions Grant,31/03/21,DRAYCOTT BREWING COMPANY LTD,393.00,Apr-21
EREWASH BOROUGH COUNCIL,225502,Balance Sheet,COVID 19 - Additional Restrictions Grant,31/03/21,REDACTED PERSONAL DATA,393.00,Apr-21
EREWASH BOROUGH COUNCIL,225505,Balance Sheet,COVID 19 - Additional Restrictions Grant,31/03/21,REDACTED PERSONAL DATA,393.00,Apr-21
EREWASH BOROUGH COUNCIL,225513,Balance Sheet,COVID 19 - Additional Restrictions Grant,31/03/21,H PELL @ BROWNS HAIRDRESSING,393.00,Apr-21
EREWASH BOROUGH COUNCIL,225532,Balance Sheet,COVID 19 - Additional Restrictions Grant,31/03/21,REDACTED PERSONAL DATA,393.00,Apr-21
EREWASH BOROUGH COUNCIL,225533,Balance Sheet,COVID 19 - Additional Restrictions Grant,31/03/21,REHANNAH ROSE NAILS BROWS BEAUTY,393.00,Apr-21
EREWASH BOROUGH COUNCIL,225542,Balance Sheet,COVID 19 - Additional Restrictions Grant,31/03/21,CASTLEFIELD KENNELS LIMITED,393.00,Apr-21
EREWASH BOROUGH COUNCIL,225547,Balance Sheet,COVID 19 - Additional Restrictions Grant,31/03/21,ELENA'S BEAUTY & NAILS,393.00,Apr-21
EREWASH BOROUGH COUNCIL,225551,Balance Sheet,COVID 19 - Additional Restrictions Grant,31/03/21,HELPING HOOVES DERBYSHIRE CIC,393.00,Apr-21
EREWASH BOROUGH COUNCIL,226345,Balance Sheet,COVID 19 - Additional Restrictions Grant,29/04/21,REDACTED PERSONAL DATA,"3,464.00",Apr-21
EREWASH BOROUGH COUNCIL,226351,Balance Sheet,COVID 19 - Additional Restrictions Grant,29/04/21,REDACTED PERSONAL DATA,"3,464.00",Apr-21
EREWASH BOROUGH COUNCIL,226352,Balance Sheet,COVID 19 - Additional Restrictions Grant,29/04/21,STUDIO 5 BEAUTY,"3,464.00",Apr-21
EREWASH BOROUGH COUNCIL,226368,Balance Sheet,COVID 19 - Additional Restrictions Grant,29/04/21,LEEROYS KEBAB HOUSE,"3,464.00",Apr-21
EREWASH BOROUGH COUNCIL,226369,Balance Sheet,COVID 19 - Additional Restrictions Grant,29/04/21,FEATHERS BEAUTY,"3,464.00",Apr-21
EREWASH BOROUGH COUNCIL,225943,Balance Sheet,Payroll Collection A/c - Superannuation,13/04/21,DERBYSHIRE COUNTY COUNCIL...,"205,766.95",Apr-21
EREWASH BOROUGH COUNCIL,226373,Balance Sheet,Payroll Collection A/c - Recovery of Advance,26/04/21,REDACTED PERSONAL DATA,"1,544.64",Apr-21
EREWASH BOROUGH COUNCIL,226197,Balance Sheet,Payroll Collection A/c - Attachment Orders,27/04/21,DEPARTMENT FOR WORK FOR PENSIONS,267.94,Apr-21
EREWASH BOROUGH COUNCIL,226194,Treasury Management and Bank Charges,Unpaid Cheque Fees,12/04/21,LLOYDS BANK,209.16,Apr-21
EREWASH BOROUGH COUNCIL,225046,Street Scene,Maintenance of Bus Shelters,18/03/21,SHELTER MAINTENANCE CO,"5,198.40",Apr-21
EREWASH BOROUGH COUNCIL,225780,Economic Development,Project Grants,01/03/21,ASHFIELD DISTRICT COUNCIL,"2,000.00",Apr-21
EREWASH BOROUGH COUNCIL,225797,Environmental Protection Act,Work In Default,15/02/21,P G BOSWORTH LIMITED,590.00,Apr-21
EREWASH BOROUGH COUNCIL,225811,Property and Estates,Reactive Maintenance,31/03/21,ALPHA PARTNER (MIDLANDS)  LIMITED,"1,915.00",Apr-21
EREWASH BOROUGH COUNCIL,225953,Civic Accommodation - Ilkeston,PPM Mechanical and Equipment,06/04/21,CONCEPT ELEVATORS (UK) LTD,149.00,Apr-21
EREWASH BOROUGH COUNCIL,226033,Trade Waste,Repairs and Maintenance,08/04/21,DENNIS EAGLE LTD,"1,048.81",Apr-21
EREWASH BOROUGH COUNCIL,226083,Kerbside Dry Recycling Collection,Repairs and Maintenance,12/04/21,DENNIS EAGLE LTD,228.79,Apr-21
EREWASH BOROUGH COUNCIL,225866,Street Scene,Repairs and Maintenance,23/03/21,BUCHER MUNICIPAL LTD,479.19,Apr-21
EREWASH BOROUGH COUNCIL,225755,Green Space,Repairs and Maintenance,22/03/21,HENTON & CHATTELL LTD,576.29,Apr-21
EREWASH BOROUGH COUNCIL,225756,Green Space,Repairs and Maintenance,22/03/21,HENTON & CHATTELL LTD,414.87,Apr-21
EREWASH BOROUGH COUNCIL,226083,Household/Residual Waste Collection,Repairs and Maintenance,12/04/21,DENNIS EAGLE LTD,231.65,Apr-21
EREWASH BOROUGH COUNCIL,225326,Household/Residual Waste Collection,Repairs and Maintenance,26/03/21,TERBERG MATEC UK,288.39,Apr-21
EREWASH BOROUGH COUNCIL,226049,Kerbside Dry Recycling Collection,Road Taxes,14/04/21,POST OFFICE LTD,300.00,Apr-21
EREWASH BOROUGH COUNCIL,226049,Pewit Golf Course,Road Taxes,14/04/21,POST OFFICE LTD,265.00,Apr-21
EREWASH BOROUGH COUNCIL,225860,Kerbside Dry Recycling Collection,Tyres,27/02/21,LODGE TYRE COMPANY LTD,295.34,Apr-21
EREWASH BOROUGH COUNCIL,225920,Household/Residual Waste Collection,Tyres,31/03/21,LODGE TYRE COMPANY LTD,"2,375.90",Apr-21
EREWASH BOROUGH COUNCIL,225160,Arts Development,General Equipment,18/03/21,CREATIVE INTERIORS,585.00,Apr-21
EREWASH BOROUGH COUNCIL,225895,ICT Support Services,General Equipment,31/03/21,CCS MEDIA LIMITED,461.84,Apr-21
EREWASH BOROUGH COUNCIL,225958,Front Line Support Services,General Equipment,09/04/21,ONLINE ERGONOMICS LTD,494.95,Apr-21
EREWASH BOROUGH COUNCIL,225773,Green Space,Materials/Consumables,30/03/21,MIDLANDS PARKS FORUM,259.00,Apr-21
EREWASH BOROUGH COUNCIL,226067,Green Space,Materials/Consumables,14/03/21,BHGS LTD HORTICULTURAL SUPPLIES,"3,348.00",Apr-21
EREWASH BOROUGH COUNCIL,226070,Green Space,Materials/Consumables,06/04/21,PENTLAND PLANTS LTD,"1,109.38",Apr-21
EREWASH BOROUGH COUNCIL,225725,Household/Residual Waste Collection,Protective Clothing,03/03/21,PROTECTIVE WEAR SUPPLIES LTD,255.84,Apr-21
EREWASH BOROUGH COUNCIL,225962,ICT Support Services,Office Paper,08/04/21,ANTALIS DOCUMENT SUPPLIES,253.00,Apr-21
EREWASH BOROUGH COUNCIL,226161,Revenues and Benefits,Reference Literature and Publications,01/02/21,HBINFO LTD,550.00,Apr-21
EREWASH BOROUGH COUNCIL,225748,Homelessness,Temporary Accommodation,07/02/21,DERBY GUESTHOUSE LIMITED,700.00,Apr-21
EREWASH BOROUGH COUNCIL,225749,Homelessness,Temporary Accommodation,27/02/21,DERBY GUESTHOUSE LIMITED,250.00,Apr-21
EREWASH BOROUGH COUNCIL,225989,Homelessness,Temporary Accommodation,01/04/21,NOVOTEL NOTTINGHAM,"1,328.66",Apr-21
EREWASH BOROUGH COUNCIL,225990,Homelessness,Temporary Accommodation,14/03/21,NOVOTEL NOTTINGHAM,471.46,Apr-21
EREWASH BOROUGH COUNCIL,225992,Homelessness,Temporary Accommodation,01/04/21,NOVOTEL NOTTINGHAM,600.04,Apr-21
EREWASH BOROUGH COUNCIL,225980,Homelessness,Temporary Accommodation,01/04/21,NOVOTEL NOTTINGHAM,807.16,Apr-21
EREWASH BOROUGH COUNCIL,225289,Finance Division,Consultants Fees,23/03/21,PIXEL FINANCIAL MANAGEMENT LTD,750.00,Apr-21
EREWASH BOROUGH COUNCIL,225790,Atmospheric Pollution,Nitrogen Dioxide Survey,20/03/21,STAFFORDSHIRE COUNTY COUNCIL,855.00,Apr-21
EREWASH BOROUGH COUNCIL,226065,Registration of Electors,Subscriptions,01/04/21,THOMSON REUTERS,316.80,Apr-21
EREWASH BOROUGH COUNCIL,225737,Trade Waste,Waste Disposal,24/02/21,DERBYSHIRE COUNTY COUNCIL...,"1,324.00",Apr-21
EREWASH BOROUGH COUNCIL,225738,Kerbside Dry Recycling Collection,Waste Disposal,28/02/21,GAE SMITH HOLDINGS T/A CASEPAK,"2,177.16",Apr-21
EREWASH BOROUGH COUNCIL,225198,Parish Council Concurrent Functions,Little Eaton - Precept,26/03/21,LITTLE EATON PARISH COUNCIL,"13,027.00",Apr-21
EREWASH BOROUGH COUNCIL,225202,Parish Precepts,Sandiacre - Precept,26/03/21,SANDIACRE PARISH COUNCIL,"51,510.00",Apr-21
EREWASH BOROUGH COUNCIL,225205,Parish Council Concurrent Functions,Stanton by Dale - Precept,26/03/21,STANTON-BY-DALE PARISH COUNCIL,"4,532.00",Apr-21
EREWASH BOROUGH COUNCIL,226200,Payments,Commission,27/04/21,UNISON,-6.91,Apr-21
EREWASH BOROUGH COUNCIL,226275,Leisure Contract,Contracted Services,21/04/21,PARKWOOD LEISURE LTD,"26,831.98",Apr-21
EREWASH BOROUGH COUNCIL,225841,Neighbourhood Wardens,Contracted Services,28/02/21,EFFECTIVE SECURITY SERVICES LTD,"3,193.00",Apr-21
EREWASH BOROUGH COUNCIL,226266,Occupational Health and Welfare,Occupational Health Service,01/04/21,BUPA HEALTH CLINICS,418.55,Apr-21
EREWASH BOROUGH COUNCIL,226287,Homelessness,Homelessness-Lease Properties,01/02/21,EMH HOMES,"1,240.06",Apr-21
EREWASH BOROUGH COUNCIL,226202,Balance Sheet,Payroll Collection A/c - Credit Union,27/04/21,DERBYSHIRE COMMUNITY BANK,330.00,Apr-21
EREWASH BOROUGH COUNCIL,226193,Treasury Management and Bank Charges,Allpay/Post Office Charges,31/03/21,ALLPAY LIMITED,829.64,Apr-21
EREWASH BOROUGH COUNCIL,225313,Balance Sheet,ICT Software Licence Payment in Advance,29/03/21,AXESS SYSTEMS LTD,"1,484.45",Apr-21
EREWASH BOROUGH COUNCIL,226016,Urban Renewal,Agency Staff,07/04/21,OSBORNE RICHARDSON,"1,054.00",Apr-21
EREWASH BOROUGH COUNCIL,226072,Kerbside Dry Recycling Collection,Agency Staff,08/04/21,QUALITY SERVICE RECRUITMENT LTD,516.21,Apr-21
EREWASH BOROUGH COUNCIL,226274,Green Space,Agency Staff,05/04/21,EXTRA PERSONNEL LTD,"1,832.97",Apr-21
EREWASH BOROUGH COUNCIL,226280,Green Space,Agency Staff,12/04/21,EXTRA PERSONNEL LTD,"2,110.79",Apr-21
EREWASH BOROUGH COUNCIL,226279,Public Conveniences,Agency Staff,12/04/21,EXTRA PERSONNEL LTD,607.95,Apr-21
EREWASH BOROUGH COUNCIL,226026,Street Scene,Agency Staff,29/03/21,EXTRA PERSONNEL LTD,"1,928.20",Apr-21
EREWASH BOROUGH COUNCIL,226280,Street Scene,Agency Staff,12/04/21,EXTRA PERSONNEL LTD,"2,110.79",Apr-21
EREWASH BOROUGH COUNCIL,226306,Street Scene,Agency Staff,08/03/21,EXTRA PERSONNEL LTD,"3,942.99",Apr-21
EREWASH BOROUGH COUNCIL,226126,Household/Residual Waste Collection,Agency Staff,14/04/21,THORN BAKER LIMITED,"2,148.76",Apr-21
EREWASH BOROUGH COUNCIL,225349,Transport Trading Account,Agency Staff,19/03/21,TOTAL TRANSPORT COMPLIANCE,"1,500.00",Apr-21
EREWASH BOROUGH COUNCIL,225753,Kerbside Dry Recycling Collection,Agency Staff,13/03/21,WORKCHAIN LTD,696.49,Apr-21
EREWASH BOROUGH COUNCIL,225827,Kerbside Dry Recycling Collection,Agency Staff,24/03/21,THORN BAKER LIMITED,"1,488.14",Apr-21
EREWASH BOROUGH COUNCIL,225316,Property and Estates,Planned Preventative Maintenance,29/03/21,ALPHA PARTNER (MIDLANDS)  LIMITED,"9,935.80",Apr-21
EREWASH BOROUGH COUNCIL,225055,Toll Bar House - Ilkeston,Electricity,15/03/21,TOTAL GAS & POWER LTD,654.43,Apr-21
EREWASH BOROUGH COUNCIL,225056,Civic Accommodation - Long Eaton,Electricity,15/03/21,TOTAL GAS & POWER LTD,"1,622.16",Apr-21
EREWASH BOROUGH COUNCIL,225075,Erewash Museum,Gas,12/03/21,TOTAL GAS & POWER LTD,332.00,Apr-21
EREWASH BOROUGH COUNCIL,226295,Cemeteries,Metered Water,01/04/21,SCOTTISH WATER BUSINESS STREAM LIMITED,84.13,Apr-21
EREWASH BOROUGH COUNCIL,226110,Balance Sheet,Grant Payments,23/03/21,DERBYSHIRE COUNTY COUNCIL...,"30,000.00",Apr-21
EREWASH BOROUGH COUNCIL,225393,Balance Sheet,COVID 19 - Additional Restrictions Grant,31/03/21,VICKI HEAVENS MOBILE HAIRDRESSING,393.00,Apr-21
EREWASH BOROUGH COUNCIL,225418,Balance Sheet,COVID 19 - Additional Restrictions Grant,31/03/21,BARKINGHAM PALACE ANIMAL HOTEL,393.00,Apr-21
EREWASH BOROUGH COUNCIL,225429,Balance Sheet,COVID 19 - Additional Restrictions Grant,31/03/21,KEV JAMES DRIVER TRAINING LTD,393.00,Apr-21
EREWASH BOROUGH COUNCIL,225412,Balance Sheet,COVID 19 - Additional Restrictions Grant,31/03/21,THE WELLBEING DEN,393.00,Apr-21
EREWASH BOROUGH COUNCIL,225415,Balance Sheet,COVID 19 - Additional Restrictions Grant,31/03/21,LJB JEWELLERY,393.00,Apr-21
EREWASH BOROUGH COUNCIL,225566,Balance Sheet,COVID 19 - Additional Restrictions Grant,31/03/21,HAILSNAILS,393.00,Apr-21
EREWASH BOROUGH COUNCIL,225568,Balance Sheet,COVID 19 - Additional Restrictions Grant,31/03/21,LITTLE EATON PLAY SCHOOL,393.00,Apr-21
EREWASH BOROUGH COUNCIL,225698,Balance Sheet,COVID 19 - Additional Restrictions Grant,31/03/21,LITTLE LAS VEGAS CASINO HIRE,393.00,Apr-21
EREWASH BOROUGH COUNCIL,225704,Balance Sheet,COVID 19 - Additional Restrictions Grant,31/03/21,SMITH-GUARINO TRADING LTD,393.00,Apr-21
EREWASH BOROUGH COUNCIL,225708,Balance Sheet,COVID 19 - Additional Restrictions Grant,31/03/21,CHARLOTTE HALLIDAY HAIR,393.00,Apr-21
EREWASH BOROUGH COUNCIL,225711,Balance Sheet,COVID 19 - Additional Restrictions Grant,31/03/21,REDACTED PERSONAL DATA,393.00,Apr-21
EREWASH BOROUGH COUNCIL,225459,Balance Sheet,COVID 19 - Additional Restrictions Grant,31/03/21,TECHNICAL TEACH ACADEMY,393.00,Apr-21
EREWASH BOROUGH COUNCIL,225461,Balance Sheet,COVID 19 - Additional Restrictions Grant,31/03/21,SHINE HAIR & BEAUTY,393.00,Apr-21
EREWASH BOROUGH COUNCIL,225582,Balance Sheet,COVID 19 - Additional Restrictions Grant,31/03/21,TERESA SMITH T/A BELLE AME,393.00,Apr-21
EREWASH BOROUGH COUNCIL,225584,Balance Sheet,COVID 19 - Additional Restrictions Grant,31/03/21,NMT HOSPITALITY LTD,393.00,Apr-21
EREWASH BOROUGH COUNCIL,225598,Balance Sheet,COVID 19 - Additional Restrictions Grant,31/03/21,REDACTED PERSONAL DATA,393.00,Apr-21
EREWASH BOROUGH COUNCIL,225605,Balance Sheet,COVID 19 - Additional Restrictions Grant,31/03/21,DB PLUMBING & PROPERTY SERVICES LTD,393.00,Apr-21
EREWASH BOROUGH COUNCIL,225609,Balance Sheet,COVID 19 - Additional Restrictions Grant,31/03/21,REDACTED PERSONAL DATA,393.00,Apr-21
EREWASH BOROUGH COUNCIL,225615,Balance Sheet,COVID 19 - Additional Restrictions Grant,31/03/21,SMILING CATS AND DOGS,393.00,Apr-21
EREWASH BOROUGH COUNCIL,225623,Balance Sheet,COVID 19 - Additional Restrictions Grant,31/03/21,REDACTED PERSONAL DATA,393.00,Apr-21
EREWASH BOROUGH COUNCIL,225631,Balance Sheet,COVID 19 - Additional Restrictions Grant,31/03/21,REDACTED PERSONAL DATA,393.00,Apr-21
EREWASH BOROUGH COUNCIL,225659,Balance Sheet,COVID 19 - Additional Restrictions Grant,31/03/21,C AND A MOTOR SERVICES,393.00,Apr-21
EREWASH BOROUGH COUNCIL,225664,Balance Sheet,COVID 19 - Additional Restrictions Grant,31/03/21,REDACTED PERSONAL DATA,393.00,Apr-21
EREWASH BOROUGH COUNCIL,225665,Balance Sheet,COVID 19 - Additional Restrictions Grant,31/03/21,REDACTED PERSONAL DATA,393.00,Apr-21
EREWASH BOROUGH COUNCIL,225678,Balance Sheet,COVID 19 - Additional Restrictions Grant,31/03/21,CAPTAIN KIRK LIMITED,393.00,Apr-21
EREWASH BOROUGH COUNCIL,225683,Balance Sheet,COVID 19 - Additional Restrictions Grant,31/03/21,B J SUPPLIES,589.00,Apr-21
EREWASH BOROUGH COUNCIL,225687,Balance Sheet,COVID 19 - Additional Restrictions Grant,31/03/21,REDACTED PERSONAL DATA,393.00,Apr-21
EREWASH BOROUGH COUNCIL,225689,Balance Sheet,COVID 19 - Additional Restrictions Grant,31/03/21,DHIENDSA TRANSPORT,393.00,Apr-21
EREWASH BOROUGH COUNCIL,225467,Balance Sheet,COVID 19 - Additional Restrictions Grant,31/03/21,F & M STEED LTD,589.00,Apr-21
EREWASH BOROUGH COUNCIL,225472,Balance Sheet,COVID 19 - Additional Restrictions Grant,31/03/21,LITTLE WOLF ENTERTAINMENT,589.00,Apr-21
EREWASH BOROUGH COUNCIL,225508,Balance Sheet,COVID 19 - Additional Restrictions Grant,31/03/21,REDACTED PERSONAL DATA,393.00,Apr-21
EREWASH BOROUGH COUNCIL,225518,Balance Sheet,COVID 19 - Additional Restrictions Grant,31/03/21,MOTORVATE DRIVING SCHOOL,393.00,Apr-21
EREWASH BOROUGH COUNCIL,225520,Balance Sheet,COVID 19 - Additional Restrictions Grant,31/03/21,A.A.M INSTALLATIONS LTD,393.00,Apr-21
EREWASH BOROUGH COUNCIL,225521,Balance Sheet,COVID 19 - Additional Restrictions Grant,31/03/21,REDACTED PERSONAL DATA,393.00,Apr-21
EREWASH BOROUGH COUNCIL,225528,Balance Sheet,COVID 19 - Additional Restrictions Grant,31/03/21,REDACTED PERSONAL DATA,393.00,Apr-21
EREWASH BOROUGH COUNCIL,225529,Balance Sheet,COVID 19 - Additional Restrictions Grant,31/03/21,CFA STORES LTD,589.00,Apr-21
EREWASH BOROUGH COUNCIL,225530,Balance Sheet,COVID 19 - Additional Restrictions Grant,31/03/21,RATMALLY LTD,393.00,Apr-21
EREWASH BOROUGH COUNCIL,225544,Balance Sheet,COVID 19 - Additional Restrictions Grant,31/03/21,JMS PHOTOGRAPHY,393.00,Apr-21
EREWASH BOROUGH COUNCIL,225545,Balance Sheet,COVID 19 - Additional Restrictions Grant,31/03/21,TRENT MARQUEES,393.00,Apr-21
EREWASH BOROUGH COUNCIL,226335,Balance Sheet,COVID 19 - Additional Restrictions Grant,28/04/21,SARAH JANE PSYCHOTHERAPY,"3,464.00",Apr-21
EREWASH BOROUGH COUNCIL,226370,Balance Sheet,COVID 19 - Additional Restrictions Grant,29/04/21,WILLS BARBERSHOP,"3,464.00",Apr-21
EREWASH BOROUGH COUNCIL,225942,Balance Sheet,Payroll Collection A/c - National Insurance,13/04/21,HMRC CUMBERNAULD,"109,842.63",Apr-21
EREWASH BOROUGH COUNCIL,225943,Balance Sheet,Payroll Collection A/c - Purchase Added Years,13/04/21,DERBYSHIRE COUNTY COUNCIL...,247.22,Apr-21
EREWASH BOROUGH COUNCIL,225796,Environmental Protection Act,Work In Default,15/02/21,P G BOSWORTH LIMITED,325.00,Apr-21
EREWASH BOROUGH COUNCIL,226227,Bridge House - Long Eaton,PPM Mechanical and Equipment,31/03/21,PEEL ELECTRICAL LTD,122.32,Apr-21
EREWASH BOROUGH COUNCIL,225953,Merlin Way Depot - Ilkeston,PPM Mechanical and Equipment,06/04/21,CONCEPT ELEVATORS (UK) LTD,62.63,Apr-21
EREWASH BOROUGH COUNCIL,225953,Civic Accommodation - Long Eaton,PPM Mechanical and Equipment,06/04/21,CONCEPT ELEVATORS (UK) LTD,53.00,Apr-21
EREWASH BOROUGH COUNCIL,226088,Balance Sheet,NNDR Collection Fund Control Account,22/03/21,MHCLG,"-6,832.00",Apr-21
EREWASH BOROUGH COUNCIL,225242,Green Space,Repairs and Maintenance,22/03/21,HENTON & CHATTELL LTD,433.89,Apr-21
EREWASH BOROUGH COUNCIL,226169,Green Space,Repairs and Maintenance,16/03/21,COUNTRYWIDE MIDLANDS LIMITED,309.12,Apr-21
EREWASH BOROUGH COUNCIL,225322,Kerbside Dry Recycling Collection,Repairs and Maintenance,26/03/21,DENNIS EAGLE LTD,319.41,Apr-21
EREWASH BOROUGH COUNCIL,226061,Trade Waste,Repairs and Maintenance,20/10/20,EUROTRUCK MIDLANDS LTD,398.00,Apr-21
EREWASH BOROUGH COUNCIL,225102,Household/Residual Waste Collection,Repairs and Maintenance,11/03/21,TERBERG MATEC UK,"2,030.89",Apr-21
EREWASH BOROUGH COUNCIL,225324,Household/Residual Waste Collection,Repairs and Maintenance,26/03/21,EUROTRUCK MIDLANDS LTD,456.00,Apr-21
EREWASH BOROUGH COUNCIL,226049,Household/Residual Waste Collection,Road Taxes,14/04/21,POST OFFICE LTD,"2,700.00",Apr-21
EREWASH BOROUGH COUNCIL,225860,Neighbourhood Wardens,Tyres,27/02/21,LODGE TYRE COMPANY LTD,96.00,Apr-21
EREWASH BOROUGH COUNCIL,225854,Street Scene,General Equipment,26/03/21,PLAYDALE PLAYGROUNDS LTD,77.76,Apr-21
EREWASH BOROUGH COUNCIL,225849,Sports Development Coaching & Courses,Materials/Consumables,31/03/21,DAVIES SPORTS T/A FINDEL EDUCATION LIMITED,227.62,Apr-21
EREWASH BOROUGH COUNCIL,225234,Green Space,Materials/Consumables,10/03/21,BANNER GROUP LIMITED,173.11,Apr-21
EREWASH BOROUGH COUNCIL,225319,Green Space,Materials/Consumables,22/03/21,PENTLAND PLANTS LTD,354.20,Apr-21
EREWASH BOROUGH COUNCIL,225754,Green Space,Materials/Consumables,10/03/21,PROTECTIVE WEAR SUPPLIES LTD,293.06,Apr-21
EREWASH BOROUGH COUNCIL,225816,Green Space,Materials/Consumables,31/03/21,TOM RICHARDS TREE SERVICES,400.25,Apr-21
EREWASH BOROUGH COUNCIL,225877,Green Space,Materials/Consumables,30/03/21,CROMWELL POLYTHENE LTD,"2,133.00",Apr-21
EREWASH BOROUGH COUNCIL,226062,Green Space,Materials/Consumables,02/03/20,BANNER GROUP LIMITED,261.60,Apr-21
EREWASH BOROUGH COUNCIL,226248,Homelessness,Temporary Accommodation,07/04/21,TUDOR LODGE HOTEL,166.61,Apr-21
EREWASH BOROUGH COUNCIL,226245,Homelessness,Temporary Accommodation,14/04/21,NOVOTEL NOTTINGHAM,557.18,Apr-21
EREWASH BOROUGH COUNCIL,225986,Homelessness,Temporary Accommodation,29/03/21,NOVOTEL NOTTINGHAM,"1,200.08",Apr-21
EREWASH BOROUGH COUNCIL,225845,Performance Management,Consultants Fees,31/03/21,Q2 LIMITED,"1,155.00",Apr-21
EREWASH BOROUGH COUNCIL,225846,Performance Management,Consultants Fees,31/03/21,Q2 LIMITED,"1,540.00",Apr-21
EREWASH BOROUGH COUNCIL,226045,Development Control - Fee Earning,Consultants Fees,21/03/21,ESSEX COUNTY COUNCIL,"4,560.00",Apr-21
EREWASH BOROUGH COUNCIL,226318,Insurances - (Corporate matters only),Insurance - General,25/03/21,MARSH LTD,"1,120.00",Apr-21
EREWASH BOROUGH COUNCIL,225799,Merlin Way Depot - Ilkeston,Paper Recycling and Shredding,23/10/20,NOTTINGHAM CITY COUNCIL..,19.50,Apr-21
EREWASH BOROUGH COUNCIL,225909,Shopmobility - Ilkeston,Sanitary Services,31/03/21,RENTOKIL INITIAL SERVICES LIMITED,1.46,Apr-21
EREWASH BOROUGH COUNCIL,225909,Parks Changing Rooms,Sanitary Services,31/03/21,RENTOKIL INITIAL SERVICES LIMITED,1.46,Apr-21
EREWASH BOROUGH COUNCIL,225909,Civic Accommodation - Long Eaton,Sanitary Services,31/03/21,RENTOKIL INITIAL SERVICES LIMITED,47.06,Apr-21
EREWASH BOROUGH COUNCIL,224919,ICT Support Services,GIS Software Licences,10/03/21,DOTTED EYES LTD,330.00,Apr-21
EREWASH BOROUGH COUNCIL,225894,ICT Support Services,GIS Software Licences,26/03/21,ASTUN TECHNOLOGY LTD,"16,286.00",Apr-21
EREWASH BOROUGH COUNCIL,225960,Revenues and Benefits,Software Licences,31/03/21,CIVICA UK LIMITED,"7,500.00",Apr-21
EREWASH BOROUGH COUNCIL,226300,Performance Management,Software Licences,27/04/21,LOCAL GOVERNMENT ASSOCIATION,"1,025.00",Apr-21
EREWASH BOROUGH COUNCIL,225967,Chief Executives Office,Subscriptions,07/04/21,EAST MIDLANDS CHAMBER,"1,495.00",Apr-21
EREWASH BOROUGH COUNCIL,225194,Parish Precepts,Breadsall - Precept,26/03/21,BREADSALL PARISH COUNCIL,"17,500.00",Apr-21
EREWASH BOROUGH COUNCIL,225197,Parish Precepts,Draycott - Precept,26/03/21,DRAYCOTT PARISH COUNCIL,"48,306.00",Apr-21
EREWASH BOROUGH COUNCIL,225201,Parish Council Concurrent Functions,Risley - Precept,26/03/21,RISLEY WITH HOPWELL PARISH COUNCIL,"7,348.00",Apr-21
EREWASH BOROUGH COUNCIL,225202,Parish Council Concurrent Functions,Sandiacre - Precept,26/03/21,SANDIACRE PARISH COUNCIL,"26,718.00",Apr-21
EREWASH BOROUGH COUNCIL,225206,Parish Council Concurrent Functions,West Hallam - Precept,26/03/21,WEST HALLAM PARISH COUNCIL,"13,904.00",Apr-21
EREWASH BOROUGH COUNCIL,225142,Allotments,Contracted Services,19/03/21,TUDOR ENVIRONMENTAL,390.75,Apr-21
EREWASH BOROUGH COUNCIL,225793,Car Parking,Contracted Services,28/02/21,KINGS ARMOURED SECURITY SERVICES,"1,310.80",Apr-21
EREWASH BOROUGH COUNCIL,225225,Green Space,Contracted Services,24/03/21,STEELCRAFT FABRICATIONS,460.00,Apr-21
EREWASH BOROUGH COUNCIL,226122,Leisure Contract,Contracted Services,15/04/21,PARKWOOD LEISURE LTD,"72,918.00",Apr-21
EREWASH BOROUGH COUNCIL,225834,Neighbourhood Wardens,Contracted Services,28/03/21,EFFECTIVE SECURITY SERVICES LTD,"3,224.00",Apr-21
EREWASH BOROUGH COUNCIL,225839,Neighbourhood Wardens,Contracted Services,14/03/21,EFFECTIVE SECURITY SERVICES LTD,"3,224.00",Apr-21
EREWASH BOROUGH COUNCIL,226134,Neighbourhood Wardens,Contracted Services,04/04/21,EFFECTIVE SECURITY SERVICES LTD,"2,480.00",Apr-21
EREWASH BOROUGH COUNCIL,225857,Transport Trading Account,Vehicle MOT and Retest Fee,06/04/21,REDACTED PERSONAL DATA,40.00,Apr-21
EREWASH BOROUGH COUNCIL,226155,Household/Residual Waste Collection,Bins,01/04/21,MGB PLASTICS LTD,450.00,Apr-21
EREWASH BOROUGH COUNCIL,226183,Transport Trading Account,Agency Staff,19/04/21,QUESTECH RECRUITMENT LTD,906.50,Apr-21
EREWASH BOROUGH COUNCIL,225742,Urban Renewal,Agency Staff,03/03/21,OSBORNE RICHARDSON,"1,258.00",Apr-21
EREWASH BOROUGH COUNCIL,225838,Homelessness,Agency Staff,31/03/21,GREENACRE RECRUITMENT,558.72,Apr-21
EREWASH BOROUGH COUNCIL,225933,Public Conveniences,Agency Staff,22/03/21,EXTRA PERSONNEL LTD,594.44,Apr-21
EREWASH BOROUGH COUNCIL,225829,Kerbside Dry Recycling Collection,Agency Staff,25/03/21,QUALITY SERVICE RECRUITMENT LTD,434.08,Apr-21
EREWASH BOROUGH COUNCIL,225752,Household/Residual Waste Collection,Agency Staff,20/03/21,WORKCHAIN LTD,"1,252.40",Apr-21
EREWASH BOROUGH COUNCIL,225753,Household/Residual Waste Collection,Agency Staff,13/03/21,WORKCHAIN LTD,"1,044.73",Apr-21
EREWASH BOROUGH COUNCIL,225826,Household/Residual Waste Collection,Agency Staff,17/03/21,THORN BAKER LIMITED,"2,167.81",Apr-21
EREWASH BOROUGH COUNCIL,226022,Household/Residual Waste Collection,Agency Staff,22/03/21,EXTRA PERSONNEL LTD,"3,023.20",Apr-21
EREWASH BOROUGH COUNCIL,224871,Street Scene,Training,23/03/21,NOW U KNOW TRAINING LTD,107.23,Apr-21
EREWASH BOROUGH COUNCIL,225056,Merlin Way Depot - Ilkeston,Electricity,15/03/21,TOTAL GAS & POWER LTD,"2,015.26",Apr-21
EREWASH BOROUGH COUNCIL,225055,Cemeteries,Electricity,15/03/21,TOTAL GAS & POWER LTD,244.96,Apr-21
EREWASH BOROUGH COUNCIL,225055,Shopmobility - Ilkeston,Electricity,15/03/21,TOTAL GAS & POWER LTD,251.61,Apr-21
EREWASH BOROUGH COUNCIL,225075,Abbotsford Community Centre,Gas,12/03/21,TOTAL GAS & POWER LTD,-490.44,Apr-21
EREWASH BOROUGH COUNCIL,226295,Merlin Way Depot - Ilkeston,Metered Water,01/04/21,SCOTTISH WATER BUSINESS STREAM LIMITED,638.61,Apr-21
EREWASH BOROUGH COUNCIL,226295,Long Eaton Market,Metered Water,01/04/21,SCOTTISH WATER BUSINESS STREAM LIMITED,127.61,Apr-21
EREWASH BOROUGH COUNCIL,226295,Ilkeston Market,Unmetered Water,01/04/21,SCOTTISH WATER BUSINESS STREAM LIMITED,"1,874.11",Apr-21
EREWASH BOROUGH COUNCIL,225898,Balance Sheet,ICT Works,04/04/21,MACILDOWIE RECRUITMENT EXPERTISE,"1,024.20",Apr-21
EREWASH BOROUGH COUNCIL,225377,Balance Sheet,COVID 19 - Additional Restrictions Grant,31/03/21,LIEVENS FURNITURE LIMITED,393.00,Apr-21
EREWASH BOROUGH COUNCIL,225379,Balance Sheet,COVID 19 - Additional Restrictions Grant,31/03/21,NIKKI'S BEAUTY,393.00,Apr-21
EREWASH BOROUGH COUNCIL,225639,Balance Sheet,COVID 19 - Additional Restrictions Grant,31/03/21,BEAUTY LOUNGE BY REET,393.00,Apr-21
EREWASH BOROUGH COUNCIL,225643,Balance Sheet,COVID 19 - Additional Restrictions Grant,31/03/21,REDACTED PERSONAL DATA,393.00,Apr-21
EREWASH BOROUGH COUNCIL,225644,Balance Sheet,COVID 19 - Additional Restrictions Grant,31/03/21,THE TRAVEL SNOB LTD,393.00,Apr-21
EREWASH BOROUGH COUNCIL,225386,Balance Sheet,COVID 19 - Additional Restrictions Grant,31/03/21,TRUSS'S TAXI,393.00,Apr-21
EREWASH BOROUGH COUNCIL,225401,Balance Sheet,COVID 19 - Additional Restrictions Grant,31/03/21,PREMIER HIRE & TAXI (SANDIACRE) LTD,393.00,Apr-21
EREWASH BOROUGH COUNCIL,225403,Balance Sheet,COVID 19 - Additional Restrictions Grant,31/03/21,PITBOSS BBQ LIMITED,393.00,Apr-21
EREWASH BOROUGH COUNCIL,225405,Balance Sheet,COVID 19 - Additional Restrictions Grant,31/03/21,CHERYLS HABERDASHERY,393.00,Apr-21
EREWASH BOROUGH COUNCIL,225424,Balance Sheet,COVID 19 - Additional Restrictions Grant,31/03/21,EDGE 2 DETAIL LTD.,589.00,Apr-21
EREWASH BOROUGH COUNCIL,225430,Balance Sheet,COVID 19 - Additional Restrictions Grant,31/03/21,REDACTED PERSONAL DATA,393.00,Apr-21
EREWASH BOROUGH COUNCIL,225435,Balance Sheet,COVID 19 - Additional Restrictions Grant,31/03/21,TERESA SHAW T/A POROSOL PRINT,393.00,Apr-21
EREWASH BOROUGH COUNCIL,225557,Balance Sheet,COVID 19 - Additional Restrictions Grant,31/03/21,MOHAMMED HANIF T/A TAXI DRIVER,393.00,Apr-21
EREWASH BOROUGH COUNCIL,225558,Balance Sheet,COVID 19 - Additional Restrictions Grant,31/03/21,JANET TOMBLIN TRAVEL COUNSELLOR,393.00,Apr-21
EREWASH BOROUGH COUNCIL,225563,Balance Sheet,COVID 19 - Additional Restrictions Grant,31/03/21,NICOLA SUMPTER HAIR AND MAKE UP,393.00,Apr-21
EREWASH BOROUGH COUNCIL,225565,Balance Sheet,COVID 19 - Additional Restrictions Grant,31/03/21,S P RENWICK GARAGE SERVICES,393.00,Apr-21
EREWASH BOROUGH COUNCIL,225571,Balance Sheet,COVID 19 - Additional Restrictions Grant,31/03/21,THE HOUSE OF SK-1 LTD,393.00,Apr-21
EREWASH BOROUGH COUNCIL,225694,Balance Sheet,COVID 19 - Additional Restrictions Grant,31/03/21,VEE DUBZ CONERSTIONS LTD,393.00,Apr-21
EREWASH BOROUGH COUNCIL,225706,Balance Sheet,COVID 19 - Additional Restrictions Grant,31/03/21,BROOKSIDE BOARDING KENNELS & CATTERY,393.00,Apr-21
EREWASH BOROUGH COUNCIL,225448,Balance Sheet,COVID 19 - Additional Restrictions Grant,31/03/21,PRIORITY LIFT SERVICES LTD,393.00,Apr-21
EREWASH BOROUGH COUNCIL,225457,Balance Sheet,COVID 19 - Additional Restrictions Grant,31/03/21,REDACTED PERSONAL DATA,393.00,Apr-21
EREWASH BOROUGH COUNCIL,225578,Balance Sheet,COVID 19 - Additional Restrictions Grant,31/03/21,CROWDPULLERS (EVENTS) LIMITED,393.00,Apr-21
EREWASH BOROUGH COUNCIL,225593,Balance Sheet,COVID 19 - Additional Restrictions Grant,31/03/21,STAY & PLAY FOR DOGS,393.00,Apr-21
EREWASH BOROUGH COUNCIL,225595,Balance Sheet,COVID 19 - Additional Restrictions Grant,31/03/21,VICKYS SWIMSCHOOL,393.00,Apr-21
EREWASH BOROUGH COUNCIL,225596,Balance Sheet,COVID 19 - Additional Restrictions Grant,31/03/21,STREET FOOD KITCHEN,393.00,Apr-21
EREWASH BOROUGH COUNCIL,225617,Balance Sheet,COVID 19 - Additional Restrictions Grant,31/03/21,REDACTED PERSONAL DATA,393.00,Apr-21
EREWASH BOROUGH COUNCIL,225618,Balance Sheet,COVID 19 - Additional Restrictions Grant,31/03/21,KUSTOM RIMZ UK LTD,393.00,Apr-21
EREWASH BOROUGH COUNCIL,225629,Balance Sheet,COVID 19 - Additional Restrictions Grant,31/03/21,JUS 2 CAB LIMITED,393.00,Apr-21
EREWASH BOROUGH COUNCIL,225632,Balance Sheet,COVID 19 - Additional Restrictions Grant,31/03/21,REDACTED PERSONAL DATA,393.00,Apr-21
EREWASH BOROUGH COUNCIL,225634,Balance Sheet,COVID 19 - Additional Restrictions Grant,31/03/21,REDACTED PERSONAL DATA,393.00,Apr-21
EREWASH BOROUGH COUNCIL,225656,Balance Sheet,COVID 19 - Additional Restrictions Grant,31/03/21,REDACTED PERSONAL DATA,393.00,Apr-21
EREWASH BOROUGH COUNCIL,225662,Balance Sheet,COVID 19 - Additional Restrictions Grant,31/03/21,BROWFX MICROBLADING,393.00,Apr-21
EREWASH BOROUGH COUNCIL,225690,Balance Sheet,COVID 19 - Additional Restrictions Grant,31/03/21,REDACTED PERSONAL DATA,393.00,Apr-21
EREWASH BOROUGH COUNCIL,225691,Balance Sheet,COVID 19 - Additional Restrictions Grant,31/03/21,KOOL DRIVER TRAINING,393.00,Apr-21
EREWASH BOROUGH COUNCIL,225693,Balance Sheet,COVID 19 - Additional Restrictions Grant,31/03/21,REDACTED PERSONAL DATA,393.00,Apr-21
EREWASH BOROUGH COUNCIL,225437,Balance Sheet,COVID 19 - Additional Restrictions Grant,31/03/21,REDACTED PERSONAL DATA,393.00,Apr-21
EREWASH BOROUGH COUNCIL,225438,Balance Sheet,COVID 19 - Additional Restrictions Grant,31/03/21,ILKESTON RUGBY CLUB TRADING LTD,393.00,Apr-21
EREWASH BOROUGH COUNCIL,225464,Balance Sheet,COVID 19 - Additional Restrictions Grant,31/03/21,POP UP CORNER SHOP,393.00,Apr-21
EREWASH BOROUGH COUNCIL,225471,Balance Sheet,COVID 19 - Additional Restrictions Grant,31/03/21,ALAN LITMAN LTD,589.00,Apr-21
EREWASH BOROUGH COUNCIL,225477,Balance Sheet,COVID 19 - Additional Restrictions Grant,31/03/21,IAN LORDS MINIBUS SERVICES,393.00,Apr-21
EREWASH BOROUGH COUNCIL,225482,Balance Sheet,COVID 19 - Additional Restrictions Grant,31/03/21,REDACTED PERSONAL DATA,393.00,Apr-21
EREWASH BOROUGH COUNCIL,225490,Balance Sheet,COVID 19 - Additional Restrictions Grant,31/03/21,NICK GILL MORTGAGES LTD,393.00,Apr-21
EREWASH BOROUGH COUNCIL,225495,Balance Sheet,COVID 19 - Additional Restrictions Grant,31/03/21,SUSAN ALLEN DRIVING SCHOOL,393.00,Apr-21
EREWASH BOROUGH COUNCIL,225499,Balance Sheet,COVID 19 - Additional Restrictions Grant,31/03/21,REDACTED PERSONAL DATA,393.00,Apr-21
EREWASH BOROUGH COUNCIL,225503,Balance Sheet,COVID 19 - Additional Restrictions Grant,31/03/21,REDACTED PERSONAL DATA,393.00,Apr-21
EREWASH BOROUGH COUNCIL,225509,Balance Sheet,COVID 19 - Additional Restrictions Grant,31/03/21,KC AESTHETICS CLINIC,393.00,Apr-21
EREWASH BOROUGH COUNCIL,225517,Balance Sheet,COVID 19 - Additional Restrictions Grant,31/03/21,DANCING FEET SCHOOL OF DANCE,393.00,Apr-21
EREWASH BOROUGH COUNCIL,225527,Balance Sheet,COVID 19 - Additional Restrictions Grant,31/03/21,TRAIN WITH LEE,393.00,Apr-21
EREWASH BOROUGH COUNCIL,225534,Balance Sheet,COVID 19 - Additional Restrictions Grant,31/03/21,OCKBROOK BOARDING CATTERY,393.00,Apr-21
EREWASH BOROUGH COUNCIL,225550,Balance Sheet,COVID 19 - Additional Restrictions Grant,31/03/21,GINFLIGHT COMPANY LIMITED,589.00,Apr-21
EREWASH BOROUGH COUNCIL,225552,Balance Sheet,COVID 19 - Additional Restrictions Grant,31/03/21,HEALEYS TOILETRIES,393.00,Apr-21
EREWASH BOROUGH COUNCIL,226336,Balance Sheet,COVID 19 - Additional Restrictions Grant,28/04/21,KJ MASSEY ACCOUNTANT,"1,964.00",Apr-21
EREWASH BOROUGH COUNCIL,226350,Balance Sheet,COVID 19 - Additional Restrictions Grant,29/04/21,REDACTED PERSONAL DATA,"3,464.00",Apr-21
EREWASH BOROUGH COUNCIL,226361,Balance Sheet,COVID 19 - Additional Restrictions Grant,29/04/21,VITESSE CLEANING SOLUTIONS,"3,464.00",Apr-21
EREWASH BOROUGH COUNCIL,226364,Balance Sheet,COVID 19 - Additional Restrictions Grant,29/04/21,KIMBERLEY SIGNS LIMITED,"3,464.00",Apr-21
EREWASH BOROUGH COUNCIL,226365,Balance Sheet,COVID 19 - Additional Restrictions Grant,29/04/21,WEST END DENTAL LABORATORY LTD,"3,464.00",Apr-21
EREWASH BOROUGH COUNCIL,226371,Balance Sheet,COVID 19 - Additional Restrictions Grant,29/04/21,REDACTED PERSONAL DATA,"3,464.00",Apr-21
EREWASH BOROUGH COUNCIL,225942,Balance Sheet,Payroll Collection A/c - Income Tax,13/04/21,HMRC CUMBERNAULD,"72,349.00",Apr-21
EREWASH BOROUGH COUNCIL,225942,Balance Sheet,Payroll Collection A/c - Recovery of Student Loan,13/04/21,HMRC CUMBERNAULD,"1,375.00",Apr-21
EREWASH BOROUGH COUNCIL,225942,Balance Sheet,Payroll Collection A/c - Statutory Maternity Pay,13/04/21,HMRC CUMBERNAULD,"-1,264.69",Apr-21
EREWASH BOROUGH COUNCIL,226029,Balance Sheet,Childcare Salary Sacrifice-Kiddie Vouchers,06/04/21,KIDDIVOUCHERS LTD,904.96,Apr-21
EREWASH BOROUGH COUNCIL,225318,Property and Estates,Reactive Maintenance,27/03/21,ALPHA PARTNER (MIDLANDS)  LIMITED,"1,485.00",Apr-21
EREWASH BOROUGH COUNCIL,226088,Balance Sheet,NNDR Collection Fund Control Account,22/03/21,MHCLG,"-2,318.00",Apr-21
EREWASH BOROUGH COUNCIL,226192,Green Space,Fuel,04/04/21,THE RIGHT FUELCARD COMPANY LTD,307.29,Apr-21
EREWASH BOROUGH COUNCIL,226168,Green Space,Repairs and Maintenance,16/03/21,COUNTRYWIDE MIDLANDS LIMITED,270.34,Apr-21
EREWASH BOROUGH COUNCIL,226167,Green Space,Repairs and Maintenance,16/03/21,COUNTRYWIDE MIDLANDS LIMITED,556.65,Apr-21
EREWASH BOROUGH COUNCIL,226031,Household/Residual Waste Collection,Repairs and Maintenance,24/02/21,DENNIS EAGLE LTD,294.82,Apr-21
EREWASH BOROUGH COUNCIL,226165,Household/Residual Waste Collection,MOTs,31/03/21,WILLIAM WEST & SONS (ILKESTON) LIMITED,158.00,Apr-21
EREWASH BOROUGH COUNCIL,225154,ICT Support Services,General Equipment,18/03/21,CCS MEDIA LIMITED,"1,206.74",Apr-21
EREWASH BOROUGH COUNCIL,225757,CCTV - Ilkeston and Long Eaton,Maintenance of Equipment,08/03/21,SYNECTICS SECURITY LIMITED,357.00,Apr-21
EREWASH BOROUGH COUNCIL,224901,Green Space,Materials/Consumables,12/03/21,DAB GRAPHICS,690.00,Apr-21
EREWASH BOROUGH COUNCIL,225059,Green Space,Materials/Consumables,18/03/21,ALPHA PARTNER (MIDLANDS)  LIMITED,143.40,Apr-21
EREWASH BOROUGH COUNCIL,225804,Green Space,Materials/Consumables,17/03/21,ARGROVISTA UK LTD,373.82,Apr-21
EREWASH BOROUGH COUNCIL,225868,Green Space,Materials/Consumables,01/04/21,PROTECTIVE WEAR SUPPLIES LTD,450.72,Apr-21
EREWASH BOROUGH COUNCIL,225747,Homelessness,Temporary Accommodation,02/02/21,DERBY GUESTHOUSE LIMITED,700.00,Apr-21
EREWASH BOROUGH COUNCIL,225991,Homelessness,Temporary Accommodation,01/04/21,NOVOTEL NOTTINGHAM,857.20,Apr-21
EREWASH BOROUGH COUNCIL,226012,Homelessness,Temporary Accommodation,30/03/21,TUDOR LODGE HOTEL,291.67,Apr-21
EREWASH BOROUGH COUNCIL,226013,Homelessness,Temporary Accommodation,30/11/20,REDACTED PERSONAL DATA,840.00,Apr-21
EREWASH BOROUGH COUNCIL,226248,Homelessness,Temporary Accommodation,07/04/21,TUDOR LODGE HOTEL,125.06,Apr-21
EREWASH BOROUGH COUNCIL,226319,Insurances - (Corporate matters only),Insurance - General,25/03/21,MARSH LTD,"211,457.12",Apr-21
EREWASH BOROUGH COUNCIL,225909,Erewash Museum,Sanitary Services,31/03/21,RENTOKIL INITIAL SERVICES LIMITED,7.25,Apr-21
EREWASH BOROUGH COUNCIL,225959,Housing Benefit Administration,Computer Software,31/03/21,CIVICA UK LIMITED,"1,316.96",Apr-21
EREWASH BOROUGH COUNCIL,224920,ICT Support Services,GIS Software Licences,10/03/21,DOTTED EYES LTD,450.00,Apr-21
EREWASH BOROUGH COUNCIL,225284,ICT Support Services,Network Equipment & Cabling,26/03/21,INSIGHT DIRECT (UK) LTD,359.76,Apr-21
EREWASH BOROUGH COUNCIL,226294,Personnel,Subscriptions,01/04/21,LNRS DATA SERVICES LTD,980.00,Apr-21
EREWASH BOROUGH COUNCIL,226152,Kerbside Dry Recycling Collection,Waste Disposal,31/03/21,GAE SMITH HOLDINGS T/A CASEPAK,"42,251.35",Apr-21
EREWASH BOROUGH COUNCIL,225204,Parish Council Concurrent Functions,Stanley - Precept,26/03/21,STANLEY & STANLEY COMMON PARISH COUNCIL,"8,260.00",Apr-21
EREWASH BOROUGH COUNCIL,226090,Cemeteries,Exc. Right Burial (and Cert),20/04/21,JOHN WILLIAM PRICE,695.00,Apr-21
EREWASH BOROUGH COUNCIL,225814,Trees Hedges and Local Nature Reserves,Contracted Services,31/03/21,TOM RICHARDS TREE SERVICES,250.00,Apr-21
EREWASH BOROUGH COUNCIL,226272,Watercourse Maintenance,Contracted Services,31/03/21,T H HEATH  CONTRACTS  LTD,"3,470.00",Apr-21
EREWASH BOROUGH COUNCIL,225762,Car Parking,Contracted Services,28/02/21,INTERNATIONAL PARKING SYSTEMS UK LTD,59.00,Apr-21
EREWASH BOROUGH COUNCIL,225854,Street Scene,Contracted Services,26/03/21,PLAYDALE PLAYGROUNDS LTD,19.89,Apr-21
EREWASH BOROUGH COUNCIL,226020,Abandoned Vehicle Removal,Contracted Services,01/04/21,RICHFORD MOTOR SERVICES,840.00,Apr-21
EREWASH BOROUGH COUNCIL,224870,Street Scene,Vehicle Sweeper Brushes,10/03/21,CROMWELL POLYTHENE LTD,"1,565.96",Apr-21
EREWASH BOROUGH COUNCIL,226034,Transport Trading Account,Agency Staff,12/04/21,QUESTECH RECRUITMENT LTD,906.50,Apr-21
EREWASH BOROUGH COUNCIL,225218,Homelessness,Agency Staff,10/03/21,GREENACRE RECRUITMENT,608.01,Apr-21
EREWASH BOROUGH COUNCIL,226127,Kerbside Dry Recycling Collection,Agency Staff,07/04/21,THORN BAKER LIMITED,"1,458.86",Apr-21
EREWASH BOROUGH COUNCIL,226026,Public Conveniences,Agency Staff,29/03/21,EXTRA PERSONNEL LTD,526.89,Apr-21
EREWASH BOROUGH COUNCIL,226274,Public Conveniences,Agency Staff,05/04/21,EXTRA PERSONNEL LTD,621.36,Apr-21
EREWASH BOROUGH COUNCIL,225933,Street Scene,Agency Staff,22/03/21,EXTRA PERSONNEL LTD,"1,537.09",Apr-21
EREWASH BOROUGH COUNCIL,226274,Street Scene,Agency Staff,05/04/21,EXTRA PERSONNEL LTD,"1,832.97",Apr-21
EREWASH BOROUGH COUNCIL,226023,Kerbside Dry Recycling Collection,Agency Staff,21/12/20,EXTRA PERSONNEL LTD,"2,246.31",Apr-21
EREWASH BOROUGH COUNCIL,225831,Household/Residual Waste Collection,Agency Staff,08/03/21,EXTRA PERSONNEL LTD,299.92,Apr-21
EREWASH BOROUGH COUNCIL,225848,Household/Residual Waste Collection,Agency Staff,01/04/21,QUALITY SERVICE RECRUITMENT LTD,651.13,Apr-21
EREWASH BOROUGH COUNCIL,226258,Household/Residual Waste Collection,Agency Staff,08/03/21,EXTRA PERSONNEL LTD,"5,119.85",Apr-21
EREWASH BOROUGH COUNCIL,225940,Long Service Awards,Long Service Awards,31/03/21,REDACTED PERSONAL DATA,500.00,Apr-21
EREWASH BOROUGH COUNCIL,225955,Street Scene,Training,18/02/21,ACTON TIMBER YARD LIMITED,300.00,Apr-21
EREWASH BOROUGH COUNCIL,225055,Public Conveniences,Electricity,15/03/21,TOTAL GAS & POWER LTD,573.67,Apr-21
EREWASH BOROUGH COUNCIL,226295,Civic Accommodation - Ilkeston,Metered Water,01/04/21,SCOTTISH WATER BUSINESS STREAM LIMITED,365.49,Apr-21
EREWASH BOROUGH COUNCIL,226139,Corporate Health and Safety,Water Testing (Legionella),29/03/21,STERILIZING SERVICES LTD,"3,300.00",Apr-21
EREWASH BOROUGH COUNCIL,226295,Car Parking,Unmetered Water,01/04/21,SCOTTISH WATER BUSINESS STREAM LIMITED,"22,141.40",Apr-21
EREWASH BOROUGH COUNCIL,226308,Insurances,Uninsured Risks,12/02/21,BERRYMANS LACE MAWER LLP,0.00,Apr-21
EREWASH BOROUGH COUNCIL,225807,Balance Sheet,Grant Payments,09/02/21,DERBYSHIRE COUNTY COUNCIL...,"5,423.82",Apr-21
EREWASH BOROUGH COUNCIL,225881,Balance Sheet,Fuel Store,25/03/21,CERTAS ENERGY UK LIMITED T/A CARLTON FUELS,"29,097.00",Apr-21
EREWASH BOROUGH COUNCIL,225636,Balance Sheet,COVID 19 - Additional Restrictions Grant,31/03/21,BARE WAXING,393.00,Apr-21
EREWASH BOROUGH COUNCIL,225641,Balance Sheet,COVID 19 - Additional Restrictions Grant,31/03/21,REDACTED PERSONAL DATA,393.00,Apr-21
EREWASH BOROUGH COUNCIL,225645,Balance Sheet,COVID 19 - Additional Restrictions Grant,31/03/21,REDACTED PERSONAL DATA,393.00,Apr-21
EREWASH BOROUGH COUNCIL,225651,Balance Sheet,COVID 19 - Additional Restrictions Grant,31/03/21,CHAMBERS PET SUPPLIES LTD,393.00,Apr-21
EREWASH BOROUGH COUNCIL,225382,Balance Sheet,COVID 19 - Additional Restrictions Grant,31/03/21,UPTOWN PROMOTIONS LTD,393.00,Apr-21
EREWASH BOROUGH COUNCIL,225384,Balance Sheet,COVID 19 - Additional Restrictions Grant,31/03/21,PETER'S DELI,393.00,Apr-21
EREWASH BOROUGH COUNCIL,225385,Balance Sheet,COVID 19 - Additional Restrictions Grant,31/03/21,M & L ENGRAVING,393.00,Apr-21
EREWASH BOROUGH COUNCIL,225392,Balance Sheet,COVID 19 - Additional Restrictions Grant,31/03/21,DHIENDSA STORES,393.00,Apr-21
EREWASH BOROUGH COUNCIL,225394,Balance Sheet,COVID 19 - Additional Restrictions Grant,31/03/21,REDACTED PERSONAL DATA,393.00,Apr-21
EREWASH BOROUGH COUNCIL,225396,Balance Sheet,COVID 19 - Additional Restrictions Grant,31/03/21,SINGSONGSTORIES,393.00,Apr-21
EREWASH BOROUGH COUNCIL,225406,Balance Sheet,COVID 19 - Additional Restrictions Grant,31/03/21,MOHAMMAD NADEEM,393.00,Apr-21
EREWASH BOROUGH COUNCIL,225420,Balance Sheet,COVID 19 - Additional Restrictions Grant,31/03/21,EQUINE INSPIRATION,393.00,Apr-21
EREWASH BOROUGH COUNCIL,225433,Balance Sheet,COVID 19 - Additional Restrictions Grant,31/03/21,EXCLUSIVE BY DESIGN UK LTD,393.00,Apr-21
EREWASH BOROUGH COUNCIL,225559,Balance Sheet,COVID 19 - Additional Restrictions Grant,31/03/21,REDACTED PERSONAL DATA,393.00,Apr-21
EREWASH BOROUGH COUNCIL,225560,Balance Sheet,COVID 19 - Additional Restrictions Grant,31/03/21,ILKESTON RUTLAND CRICKET CLUB,393.00,Apr-21
EREWASH BOROUGH COUNCIL,225561,Balance Sheet,COVID 19 - Additional Restrictions Grant,31/03/21,REDACTED PERSONAL DATA,393.00,Apr-21
EREWASH BOROUGH COUNCIL,225562,Balance Sheet,COVID 19 - Additional Restrictions Grant,31/03/21,EXPRESS DRY CLEANING,393.00,Apr-21
EREWASH BOROUGH COUNCIL,225564,Balance Sheet,COVID 19 - Additional Restrictions Grant,31/03/21,NEXUS EXHIBITIONS LTD,393.00,Apr-21
EREWASH BOROUGH COUNCIL,225575,Balance Sheet,COVID 19 - Additional Restrictions Grant,31/03/21,ADVANCED VENDING SERVICES LTD,393.00,Apr-21
EREWASH BOROUGH COUNCIL,225696,Balance Sheet,COVID 19 - Additional Restrictions Grant,31/03/21,REDACTED PERSONAL DATA,393.00,Apr-21
EREWASH BOROUGH COUNCIL,225716,Balance Sheet,COVID 19 - Additional Restrictions Grant,31/03/21,REDACTED PERSONAL DATA,393.00,Apr-21
EREWASH BOROUGH COUNCIL,225449,Balance Sheet,COVID 19 - Additional Restrictions Grant,31/03/21,REDACTED PERSONAL DATA,393.00,Apr-21
EREWASH BOROUGH COUNCIL,225453,Balance Sheet,COVID 19 - Additional Restrictions Grant,31/03/21,PARKSIDE HIGH CIC,393.00,Apr-21
EREWASH BOROUGH COUNCIL,225456,Balance Sheet,COVID 19 - Additional Restrictions Grant,31/03/21,REDACTED PERSONAL DATA,393.00,Apr-21
EREWASH BOROUGH COUNCIL,225458,Balance Sheet,COVID 19 - Additional Restrictions Grant,31/03/21,BEV SOUTHERN-WARBURTON COACHING & PERSONAL DEVELOPMENT,393.00,Apr-21
EREWASH BOROUGH COUNCIL,225600,Balance Sheet,COVID 19 - Additional Restrictions Grant,31/03/21,BARGAIN HOMES,393.00,Apr-21
EREWASH BOROUGH COUNCIL,225608,Balance Sheet,COVID 19 - Additional Restrictions Grant,31/03/21,S&E BEAUTY LOUNGE,393.00,Apr-21
EREWASH BOROUGH COUNCIL,225611,Balance Sheet,COVID 19 - Additional Restrictions Grant,31/03/21,LIFESTYLE HOME SOLUTIONS LIMITED,589.00,Apr-21
EREWASH BOROUGH COUNCIL,225613,Balance Sheet,COVID 19 - Additional Restrictions Grant,31/03/21,FLEET 2 WHEELS DRIVING SCHOOL,393.00,Apr-21
EREWASH BOROUGH COUNCIL,225633,Balance Sheet,COVID 19 - Additional Restrictions Grant,31/03/21,REDACTED PERSONAL DATA,393.00,Apr-21
EREWASH BOROUGH COUNCIL,225654,Balance Sheet,COVID 19 - Additional Restrictions Grant,31/03/21,BB BUTTERFLY,393.00,Apr-21
EREWASH BOROUGH COUNCIL,225655,Balance Sheet,COVID 19 - Additional Restrictions Grant,31/03/21,RILEY'S TAXIS,393.00,Apr-21
EREWASH BOROUGH COUNCIL,225668,Balance Sheet,COVID 19 - Additional Restrictions Grant,31/03/21,REDACTED PERSONAL DATA,393.00,Apr-21
EREWASH BOROUGH COUNCIL,225671,Balance Sheet,COVID 19 - Additional Restrictions Grant,31/03/21,UNIQUE FURNITURE LTD,393.00,Apr-21
EREWASH BOROUGH COUNCIL,225673,Balance Sheet,COVID 19 - Additional Restrictions Grant,31/03/21,QUICK FIX KITCHENS,393.00,Apr-21
EREWASH BOROUGH COUNCIL,225682,Balance Sheet,COVID 19 - Additional Restrictions Grant,31/03/21,SA CORPORATE LTD,393.00,Apr-21
EREWASH BOROUGH COUNCIL,225685,Balance Sheet,COVID 19 - Additional Restrictions Grant,31/03/21,FNCSR LTD,589.00,Apr-21
EREWASH BOROUGH COUNCIL,225481,Balance Sheet,COVID 19 - Additional Restrictions Grant,31/03/21,JAYSONS OPTICAL SERVICES,393.00,Apr-21
EREWASH BOROUGH COUNCIL,225484,Balance Sheet,COVID 19 - Additional Restrictions Grant,31/03/21,PURPLE GIRAFFE JOINERY & INSTALLATIONS LTD,393.00,Apr-21
EREWASH BOROUGH COUNCIL,225489,Balance Sheet,COVID 19 - Additional Restrictions Grant,31/03/21,LYNDSEY MURRAY HAIR,393.00,Apr-21
EREWASH BOROUGH COUNCIL,225491,Balance Sheet,COVID 19 - Additional Restrictions Grant,31/03/21,REDACTED PERSONAL DATA,393.00,Apr-21
EREWASH BOROUGH COUNCIL,225496,Balance Sheet,COVID 19 - Additional Restrictions Grant,31/03/21,SAMS BODYSHOP LTD,393.00,Apr-21
EREWASH BOROUGH COUNCIL,225511,Balance Sheet,COVID 19 - Additional Restrictions Grant,31/03/21,A52 CARS LIMITED,393.00,Apr-21
EREWASH BOROUGH COUNCIL,225514,Balance Sheet,COVID 19 - Additional Restrictions Grant,31/03/21,SHERBETS EVENTS UK LTD,393.00,Apr-21
EREWASH BOROUGH COUNCIL,225516,Balance Sheet,COVID 19 - Additional Restrictions Grant,31/03/21,APPLETREE CATERING,393.00,Apr-21
EREWASH BOROUGH COUNCIL,225525,Balance Sheet,COVID 19 - Additional Restrictions Grant,31/03/21,REDACTED PERSONAL DATA,393.00,Apr-21
EREWASH BOROUGH COUNCIL,225535,Balance Sheet,COVID 19 - Additional Restrictions Grant,31/03/21,KNIGHT TRAVEL LTD,393.00,Apr-21
EREWASH BOROUGH COUNCIL,225543,Balance Sheet,COVID 19 - Additional Restrictions Grant,31/03/21,CJ ENTERTAINMENT HIRE,393.00,Apr-21
EREWASH BOROUGH COUNCIL,225549,Balance Sheet,COVID 19 - Additional Restrictions Grant,31/03/21,AMALFI WOMAN LTD,589.00,Apr-21
EREWASH BOROUGH COUNCIL,225554,Balance Sheet,COVID 19 - Additional Restrictions Grant,31/03/21,CKHECKMATE DRIVER TRAINING,393.00,Apr-21
EREWASH BOROUGH COUNCIL,225555,Balance Sheet,COVID 19 - Additional Restrictions Grant,31/03/21,MILLIES RESTAURANT,393.00,Apr-21
EREWASH BOROUGH COUNCIL,225556,Balance Sheet,COVID 19 - Additional Restrictions Grant,31/03/21,MILLIES THE COFFEE SHOP,393.00,Apr-21
EREWASH BOROUGH COUNCIL,226326,Balance Sheet,COVID 19 - Additional Restrictions Grant,28/04/21,ROCK AND BIKE FRIENDS LTD,500.00,Apr-21
EREWASH BOROUGH COUNCIL,226328,Balance Sheet,COVID 19 - Additional Restrictions Grant,28/04/21,TOM BRIGGS CHEF LTD,"3,464.00",Apr-21
EREWASH BOROUGH COUNCIL,226355,Balance Sheet,COVID 19 - Additional Restrictions Grant,29/04/21,BATH STREET FISH BAR,"3,464.00",Apr-21
EREWASH BOROUGH COUNCIL,226356,Balance Sheet,COVID 19 - Additional Restrictions Grant,29/04/21,REDACTED PERSONAL DATA,"3,464.00",Apr-21
EREWASH BOROUGH COUNCIL,226358,Balance Sheet,COVID 19 - Additional Restrictions Grant,29/04/21,CARBITZ LTD,"3,464.00",Apr-21
EREWASH BOROUGH COUNCIL,226360,Balance Sheet,COVID 19 - Additional Restrictions Grant,29/04/21,THE CONFERENCE WORKS LIMITED,"3,464.00",Apr-21
EREWASH BOROUGH COUNCIL,226367,Balance Sheet,COVID 19 - Additional Restrictions Grant,29/04/21,SARITA WHITE PHOTOGRAPHY,"3,464.00",Apr-21
EREWASH BOROUGH COUNCIL,226200,Balance Sheet,Payroll Collection A/c - Trade Union Subscriptions,27/04/21,UNISON,460.60,Apr-21
EREWASH BOROUGH COUNCIL,226144,Car Parking,Credit/Debit Card Charges,31/03/21,INTERNATIONAL PARKING SYSTEMS UK LTD,492.36,Apr-21
EREWASH BOROUGH COUNCIL,226131,Environmental Protection Act,Work In Default,19/04/21,P G BOSWORTH LIMITED,"1,275.00",Apr-21
EREWASH BOROUGH COUNCIL,225272,Property and Estates,Reactive Maintenance,24/03/21,STEELCRAFT FABRICATIONS,430.00,Apr-21
EREWASH BOROUGH COUNCIL,226088,Balance Sheet,NNDR Collection Fund Control Account,22/03/21,MHCLG,"1,554,426.00",Apr-21
EREWASH BOROUGH COUNCIL,225860,Transport Trading Account,Repairs and Maintenance,27/02/21,LODGE TYRE COMPANY LTD,106.00,Apr-21
EREWASH BOROUGH COUNCIL,225926,Kerbside Dry Recycling Collection,Repairs and Maintenance,01/04/21,DENNIS EAGLE LTD,474.28,Apr-21
EREWASH BOROUGH COUNCIL,225864,Green Space,Repairs and Maintenance,23/03/21,HENTON & CHATTELL LTD,389.75,Apr-21
EREWASH BOROUGH COUNCIL,226049,Green Space,Road Taxes,14/04/21,POST OFFICE LTD,"1,325.00",Apr-21
EREWASH BOROUGH COUNCIL,226043,Household/Residual Waste Collection,MOTs,31/03/21,WILLIAM WEST & SONS (ILKESTON) LIMITED,158.00,Apr-21
EREWASH BOROUGH COUNCIL,225920,Street Scene,Tyres,31/03/21,LODGE TYRE COMPANY LTD,165.06,Apr-21
EREWASH BOROUGH COUNCIL,225920,Green Space,Tyres,31/03/21,LODGE TYRE COMPANY LTD,348.60,Apr-21
EREWASH BOROUGH COUNCIL,225860,Household/Residual Waste Collection,Tyres,27/02/21,LODGE TYRE COMPANY LTD,927.50,Apr-21
EREWASH BOROUGH COUNCIL,225000,Street Scene,General Equipment,16/03/21,KEEP BRITAIN TIDY,379.00,Apr-21
EREWASH BOROUGH COUNCIL,225110,Green Space,Materials/Consumables,16/03/21,KEEP BRITAIN TIDY,658.00,Apr-21
EREWASH BOROUGH COUNCIL,225282,Green Space,Materials/Consumables,12/03/21,ROBERT POCHIN LTD,538.68,Apr-21
EREWASH BOROUGH COUNCIL,225283,Green Space,Materials/Consumables,11/03/21,ROBERT POCHIN LTD,315.42,Apr-21
EREWASH BOROUGH COUNCIL,225750,Community Services,Printing and Stationery,25/02/21,RICARDO-AEA LTD,648.50,Apr-21
EREWASH BOROUGH COUNCIL,225982,Homelessness,Temporary Accommodation,01/04/21,NOVOTEL NOTTINGHAM,"1,328.66",Apr-21
EREWASH BOROUGH COUNCIL,225983,Homelessness,Temporary Accommodation,25/03/21,NOVOTEL NOTTINGHAM,557.18,Apr-21
EREWASH BOROUGH COUNCIL,225984,Homelessness,Temporary Accommodation,01/04/21,NOVOTEL NOTTINGHAM,685.76,Apr-21
EREWASH BOROUGH COUNCIL,226007,Homelessness,Temporary Accommodation,15/03/21,TUDOR LODGE HOTEL,250.00,Apr-21
EREWASH BOROUGH COUNCIL,225909,Long Eaton Market,Sanitary Services,31/03/21,RENTOKIL INITIAL SERVICES LIMITED,1.46,Apr-21
EREWASH BOROUGH COUNCIL,226158,Contaminated Land,Site Investigations,14/04/21,DERBYSHIRE COUNTY COUNCIL...,569.70,Apr-21
EREWASH BOROUGH COUNCIL,225765,Transport Trading Account,Computer Software,17/02/21,TRUTAC LIMITED,"2,040.00",Apr-21
EREWASH BOROUGH COUNCIL,225893,ICT Support Services,Telephones,01/04/21,TELEPHONE TECHNOLOGY LTD,210.00,Apr-21
EREWASH BOROUGH COUNCIL,225891,Community Grants,Grants and Subscriptions,07/04/21,ILKESTON TAEKWON DO,250.00,Apr-21
EREWASH BOROUGH COUNCIL,225856,Arts Development,Grants and Subscriptions,14/03/21,ILKESTON ARTS & CAMERA CLUB,515.00,Apr-21
EREWASH BOROUGH COUNCIL,226185,Chief Executives Office,Subscriptions,23/03/21,DERBYSHIRE COUNTY COUNCIL...,"2,250.00",Apr-21
EREWASH BOROUGH COUNCIL,226077,Community Grants,Non Service Specific Grants,14/04/21,DERBYSHIRE DISTRICTS CAB,"29,796.00",Apr-21
EREWASH BOROUGH COUNCIL,226142,Street Scene,Licences,01/04/21,ENVIRONMENT AGENCY,"2,370.25",Apr-21
EREWASH BOROUGH COUNCIL,225247,Arts Development,Special Events,24/03/21,AVAGO CRAFTS,340.00,Apr-21
EREWASH BOROUGH COUNCIL,225770,Arts Development,Special Events,29/03/21,SPIRAL ARTS,250.00,Apr-21
EREWASH BOROUGH COUNCIL,225194,Parish Council Concurrent Functions,Breadsall - Precept,26/03/21,BREADSALL PARISH COUNCIL,"5,444.00",Apr-21
EREWASH BOROUGH COUNCIL,225199,Parish Precepts,Morley - Precept,26/03/21,MORLEY PARISH COUNCIL,"5,600.00",Apr-21
EREWASH BOROUGH COUNCIL,226135,Neighbourhood Wardens,Contracted Services,11/04/21,EFFECTIVE SECURITY SERVICES LTD,"3,224.00",Apr-21
EREWASH BOROUGH COUNCIL,225843,Trees Hedges and Local Nature Reserves,Contracted Services,31/03/21,BEECHWOOD TREES AND LANDSCAPLES LTD,"10,800.00",Apr-21
EREWASH BOROUGH COUNCIL,225791,Kerbside Dry Recycling Collection,Bins,25/03/21,MGB PLASTICS LTD,"6,491.52",Apr-21
EREWASH BOROUGH COUNCIL,225838,Homelessness,Agency Staff,31/03/21,GREENACRE RECRUITMENT,383.08,Apr-21
EREWASH BOROUGH COUNCIL,225745,Urban Renewal,Agency Staff,24/03/21,OSBORNE RICHARDSON,"1,258.00",Apr-21
EREWASH BOROUGH COUNCIL,226021,Kerbside Dry Recycling Collection,Agency Staff,30/03/21,THORN BAKER LIMITED,"1,488.14",Apr-21
EREWASH BOROUGH COUNCIL,226071,Kerbside Dry Recycling Collection,Agency Staff,03/04/21,WORKCHAIN LTD,"1,280.58",Apr-21
EREWASH BOROUGH COUNCIL,226259,Kerbside Dry Recycling Collection,Agency Staff,29/03/21,EXTRA PERSONNEL LTD,"2,801.01",Apr-21
EREWASH BOROUGH COUNCIL,226023,Green Space,Agency Staff,21/12/20,EXTRA PERSONNEL LTD,"5,194.78",Apr-21
EREWASH BOROUGH COUNCIL,226071,Household/Residual Waste Collection,Agency Staff,03/04/21,WORKCHAIN LTD,"1,920.86",Apr-21
EREWASH BOROUGH COUNCIL,226258,Household/Residual Waste Collection,Agency Staff,08/03/21,EXTRA PERSONNEL LTD,366.36,Apr-21
EREWASH BOROUGH COUNCIL,225832,Kerbside Dry Recycling Collection,Agency Staff,15/03/21,EXTRA PERSONNEL LTD,"2,302.09",Apr-21
EREWASH BOROUGH COUNCIL,225848,Kerbside Dry Recycling Collection,Agency Staff,01/04/21,QUALITY SERVICE RECRUITMENT LTD,434.08,Apr-21
EREWASH BOROUGH COUNCIL,225827,Household/Residual Waste Collection,Agency Staff,24/03/21,THORN BAKER LIMITED,"2,232.21",Apr-21
EREWASH BOROUGH COUNCIL,225832,Household/Residual Waste Collection,Agency Staff,15/03/21,EXTRA PERSONNEL LTD,"3,453.13",Apr-21
EREWASH BOROUGH COUNCIL,226256,Household/Residual Waste Collection,Agency Staff,15/03/21,EXTRA PERSONNEL LTD,509.86,Apr-21
EREWASH BOROUGH COUNCIL,226186,Occupational Health and Welfare,Staff Welfare Grant,21/04/21,EREWASH SOCIAL COMMITTEE,"3,550.00",Apr-21
EREWASH BOROUGH COUNCIL,225346,Property and Estates,Repairs and Maintenance,30/03/21,GDUK DOOR SOLUTIONS LIMITED,273.00,Apr-21
EREWASH BOROUGH COUNCIL,225055,Bridge Arches - Long Eaton,Electricity,15/03/21,TOTAL GAS & POWER LTD,38.35,Apr-21
EREWASH BOROUGH COUNCIL,225055,Car Parking,Electricity,15/03/21,TOTAL GAS & POWER LTD,680.57,Apr-21
EREWASH BOROUGH COUNCIL,225075,Civic Accommodation - Long Eaton,Gas,12/03/21,TOTAL GAS & POWER LTD,"1,055.69",Apr-21
EREWASH BOROUGH COUNCIL,225075,Merlin Way Depot - Ilkeston,Gas,12/03/21,TOTAL GAS & POWER LTD,619.04,Apr-21
EREWASH BOROUGH COUNCIL,225075,Sandiacre Friesland Sports Centre,Gas,12/03/21,TOTAL GAS & POWER LTD,275.61,Apr-21
EREWASH BOROUGH COUNCIL,226295,Erewash Museum,Unmetered Water,01/04/21,SCOTTISH WATER BUSINESS STREAM LIMITED,53.23,Apr-21
EREWASH BOROUGH COUNCIL,225343,Balance Sheet,Building Works,26/03/21,J TOMLINSON LIMITED,"221,959.83",Apr-21
EREWASH BOROUGH COUNCIL,225806,Balance Sheet,Grant Payments,08/03/21,DERBYSHIRE COUNTY COUNCIL...,"11,642.32",Apr-21
EREWASH BOROUGH COUNCIL,226112,Balance Sheet,Grant Payments,15/03/21,DERBYSHIRE COUNTY COUNCIL...,"5,904.00",Apr-21
EREWASH BOROUGH COUNCIL,226087,Non Domestic Rates Income and Expenditure,NNDR Tariff,22/03/21,DERBY CITY COUNCIL,"520,564.97",Apr-21
EREWASH BOROUGH COUNCIL,225649,Balance Sheet,COVID 19 - Additional Restrictions Grant,31/03/21,REDACTED PERSONAL DATA,393.00,Apr-21
EREWASH BOROUGH COUNCIL,225381,Balance Sheet,COVID 19 - Additional Restrictions Grant,31/03/21,REDACTED PERSONAL DATA,393.00,Apr-21
EREWASH BOROUGH COUNCIL,225387,Balance Sheet,COVID 19 - Additional Restrictions Grant,31/03/21,BESPOKE WEDDINGS (KIRSTY MORAN),393.00,Apr-21
EREWASH BOROUGH COUNCIL,225395,Balance Sheet,COVID 19 - Additional Restrictions Grant,31/03/21,BLASTING SOLUTIONS LTD,393.00,Apr-21
EREWASH BOROUGH COUNCIL,225399,Balance Sheet,COVID 19 - Additional Restrictions Grant,31/03/21,REDACTED PERSONAL DATA,393.00,Apr-21
EREWASH BOROUGH COUNCIL,225400,Balance Sheet,COVID 19 - Additional Restrictions Grant,31/03/21,ARMSTRONG AVIATIO CLOTHING LTD T/A ILKESTON PPE & WORKWEAR,589.00,Apr-21
EREWASH BOROUGH COUNCIL,225425,Balance Sheet,COVID 19 - Additional Restrictions Grant,31/03/21,REDACTED PERSONAL DATA,393.00,Apr-21
EREWASH BOROUGH COUNCIL,225431,Balance Sheet,COVID 19 - Additional Restrictions Grant,31/03/21,DOGS R US,393.00,Apr-21
EREWASH BOROUGH COUNCIL,225410,Balance Sheet,COVID 19 - Additional Restrictions Grant,31/03/21,THE NEVERLAND MUSIC COMPANY,393.00,Apr-21
EREWASH BOROUGH COUNCIL,225411,Balance Sheet,COVID 19 - Additional Restrictions Grant,31/03/21,REDACTED PERSONAL DATA,393.00,Apr-21
EREWASH BOROUGH COUNCIL,225570,Balance Sheet,COVID 19 - Additional Restrictions Grant,31/03/21,WHILE I BREATHE,393.00,Apr-21
EREWASH BOROUGH COUNCIL,225702,Balance Sheet,COVID 19 - Additional Restrictions Grant,31/03/21,REDACTED PERSONAL DATA,393.00,Apr-21
EREWASH BOROUGH COUNCIL,225712,Balance Sheet,COVID 19 - Additional Restrictions Grant,31/03/21,HUNNY BEAUTY,393.00,Apr-21
EREWASH BOROUGH COUNCIL,225440,Balance Sheet,COVID 19 - Additional Restrictions Grant,31/03/21,REDACTED PERSONAL DATA,393.00,Apr-21
EREWASH BOROUGH COUNCIL,225446,Balance Sheet,COVID 19 - Additional Restrictions Grant,31/03/21,DMB PLASTERING,393.00,Apr-21
EREWASH BOROUGH COUNCIL,225450,Balance Sheet,COVID 19 - Additional Restrictions Grant,31/03/21,REDACTED PERSONAL DATA,393.00,Apr-21
EREWASH BOROUGH COUNCIL,225581,Balance Sheet,COVID 19 - Additional Restrictions Grant,31/03/21,ONESTOPCARSHOPUK LIMITED,393.00,Apr-21
EREWASH BOROUGH COUNCIL,225588,Balance Sheet,COVID 19 - Additional Restrictions Grant,31/03/21,GAVIN DARBY T/A FRAILLOOP,393.00,Apr-21
EREWASH BOROUGH COUNCIL,225592,Balance Sheet,COVID 19 - Additional Restrictions Grant,31/03/21,PROJECT DELIVERY CONSULTING SERVICES LTD,393.00,Apr-21
EREWASH BOROUGH COUNCIL,225619,Balance Sheet,COVID 19 - Additional Restrictions Grant,31/03/21,EXPRESS CHIPPY & PIZZA LTD,393.00,Apr-21
EREWASH BOROUGH COUNCIL,225621,Balance Sheet,COVID 19 - Additional Restrictions Grant,31/03/21,REDACTED PERSONAL DATA,393.00,Apr-21
EREWASH BOROUGH COUNCIL,225622,Balance Sheet,COVID 19 - Additional Restrictions Grant,31/03/21,EZONE MOBILE & LAPTOP REPAIRS,393.00,Apr-21
EREWASH BOROUGH COUNCIL,225653,Balance Sheet,COVID 19 - Additional Restrictions Grant,31/03/21,MOJO CYCLES,393.00,Apr-21
EREWASH BOROUGH COUNCIL,225661,Balance Sheet,COVID 19 - Additional Restrictions Grant,31/03/21,VEGETABLE OIL MANAGEMENT LTD,393.00,Apr-21
EREWASH BOROUGH COUNCIL,225666,Balance Sheet,COVID 19 - Additional Restrictions Grant,31/03/21,REDACTED PERSONAL DATA,393.00,Apr-21
EREWASH BOROUGH COUNCIL,225669,Balance Sheet,COVID 19 - Additional Restrictions Grant,31/03/21,BONNIES BEAUTY SPOT,393.00,Apr-21
EREWASH BOROUGH COUNCIL,225677,Balance Sheet,COVID 19 - Additional Restrictions Grant,31/03/21,REDACTED PERSONAL DATA,393.00,Apr-21
EREWASH BOROUGH COUNCIL,225465,Balance Sheet,COVID 19 - Additional Restrictions Grant,31/03/21,DONS TAXIS,393.00,Apr-21
EREWASH BOROUGH COUNCIL,225494,Balance Sheet,COVID 19 - Additional Restrictions Grant,31/03/21,REDACTED PERSONAL DATA,393.00,Apr-21
EREWASH BOROUGH COUNCIL,225504,Balance Sheet,COVID 19 - Additional Restrictions Grant,31/03/21,REDACTED PERSONAL DATA,393.00,Apr-21
EREWASH BOROUGH COUNCIL,225506,Balance Sheet,COVID 19 - Additional Restrictions Grant,31/03/21,DAVID GUNDRY UPHOLSTERY LTD.,393.00,Apr-21
EREWASH BOROUGH COUNCIL,225512,Balance Sheet,COVID 19 - Additional Restrictions Grant,31/03/21,MIDLAND MEDIA SERVICES LTD,393.00,Apr-21
EREWASH BOROUGH COUNCIL,225522,Balance Sheet,COVID 19 - Additional Restrictions Grant,31/03/21,REDACTED PERSONAL DATA,393.00,Apr-21
EREWASH BOROUGH COUNCIL,225537,Balance Sheet,COVID 19 - Additional Restrictions Grant,31/03/21,FOREST SCHOOL NURSERIES LTD,589.00,Apr-21
EREWASH BOROUGH COUNCIL,225540,Balance Sheet,COVID 19 - Additional Restrictions Grant,31/03/21,NIC JONES AGILITY,393.00,Apr-21
EREWASH BOROUGH COUNCIL,225541,Balance Sheet,COVID 19 - Additional Restrictions Grant,31/03/21,L A B BY LAUREN,393.00,Apr-21
EREWASH BOROUGH COUNCIL,225899,Balance Sheet,COVID 19 - Additional Restrictions Grant,07/04/21,KELOMAY HAIR STYLING,"1,536.00",Apr-21
EREWASH BOROUGH COUNCIL,226327,Balance Sheet,COVID 19 - Additional Restrictions Grant,28/04/21,TABLETHOOKZ LTD,"1,964.00",Apr-21
EREWASH BOROUGH COUNCIL,226332,Balance Sheet,COVID 19 - Additional Restrictions Grant,28/04/21,HERE & THERE TAXIS,"3,464.00",Apr-21
EREWASH BOROUGH COUNCIL,226334,Balance Sheet,COVID 19 - Additional Restrictions Grant,28/04/21,ZOO HAIR DESIGN,"1,732.00",Apr-21
EREWASH BOROUGH COUNCIL,226344,Balance Sheet,COVID 19 - Additional Restrictions Grant,29/04/21,REDACTED PERSONAL DATA,"3,464.00",Apr-21
EREWASH BOROUGH COUNCIL,226347,Balance Sheet,COVID 19 - Additional Restrictions Grant,29/04/21,REDACTED PERSONAL DATA,"3,464.00",Apr-21
EREWASH BOROUGH COUNCIL,226353,Balance Sheet,COVID 19 - Additional Restrictions Grant,29/04/21,R A FAUX AND SONS,"3,464.00",Apr-21
EREWASH BOROUGH COUNCIL,226354,Balance Sheet,COVID 19 - Additional Restrictions Grant,29/04/21,REDACTED PERSONAL DATA,"3,464.00",Apr-21
EREWASH BOROUGH COUNCIL,226119,Balance Sheet,Payroll Collection A/c - Labour Party Funds,20/04/21,EREWASH LABOUR GROUP,509.32,Apr-21
EREWASH BOROUGH COUNCIL,226194,Treasury Management and Bank Charges,Lloyds BACS Services,12/04/21,LLOYDS BANK,408.81,Apr-21
EREWASH BOROUGH COUNCIL,225333,Street Scene,Maintenance of Bus Shelters,24/03/21,SHELTER MAINTENANCE CO,"5,554.00",Apr-21
EREWASH BOROUGH COUNCIL,224961,Property and Estates,Reactive Maintenance,15/03/21,ALPHA PARTNER (MIDLANDS)  LIMITED,330.00,Apr-21
EREWASH BOROUGH COUNCIL,226227,St Laurence Pre School,PPM Mechanical and Equipment,31/03/21,PEEL ELECTRICAL LTD,122.32,Apr-21
EREWASH BOROUGH COUNCIL,225916,Civic Accommodation - Long Eaton,PPM Mechanical and Equipment,25/03/21,NORWOOD ELECTRICAL UK LTD,372.02,Apr-21
EREWASH BOROUGH COUNCIL,226044,Street Scene,Repairs and Maintenance,31/03/21,RUSSELLS (KIRBYMOORSIDE) LIMITED,"1,102.05",Apr-21
EREWASH BOROUGH COUNCIL,226166,Green Space,Repairs and Maintenance,16/03/21,COUNTRYWIDE MIDLANDS LIMITED,307.38,Apr-21
EREWASH BOROUGH COUNCIL,226170,Green Space,Repairs and Maintenance,16/03/21,COUNTRYWIDE MIDLANDS LIMITED,982.21,Apr-21
EREWASH BOROUGH COUNCIL,226172,Green Space,Repairs and Maintenance,31/03/21,COUNTRYWIDE MIDLANDS LIMITED,494.41,Apr-21
EREWASH BOROUGH COUNCIL,225721,Kerbside Dry Recycling Collection,Repairs and Maintenance,29/03/21,DENNIS EAGLE LTD,295.95,Apr-21
EREWASH BOROUGH COUNCIL,226164,Household/Residual Waste Collection,Repairs and Maintenance,16/04/21,H L SMITH TRANSMISSIONS LTD,"1,800.00",Apr-21
EREWASH BOROUGH COUNCIL,225920,Kerbside Dry Recycling Collection,Tyres,31/03/21,LODGE TYRE COMPANY LTD,668.18,Apr-21
EREWASH BOROUGH COUNCIL,225154,Economic Development,General Equipment,18/03/21,CCS MEDIA LIMITED,"1,769.70",Apr-21
EREWASH BOROUGH COUNCIL,225896,ICT Support Services,General Equipment,31/03/21,CCS MEDIA LIMITED,"2,720.34",Apr-21
EREWASH BOROUGH COUNCIL,225047,Green Space,Materials/Consumables,17/03/21,HOWARD LEVITT,"1,750.00",Apr-21
EREWASH BOROUGH COUNCIL,225143,Green Space,Materials/Consumables,19/03/21,STEELCRAFT FABRICATIONS,"1,350.00",Apr-21
EREWASH BOROUGH COUNCIL,225731,Green Space,Materials/Consumables,30/03/21,RIGBY TAYLOR LTD,993.00,Apr-21
EREWASH BOROUGH COUNCIL,226244,Homelessness,Temporary Accommodation,12/04/21,NOVOTEL NOTTINGHAM,385.74,Apr-21
EREWASH BOROUGH COUNCIL,226246,Homelessness,Temporary Accommodation,15/04/21,NOVOTEL NOTTINGHAM,600.04,Apr-21
EREWASH BOROUGH COUNCIL,225987,Homelessness,Temporary Accommodation,01/04/21,NOVOTEL NOTTINGHAM,"1,328.66",Apr-21
EREWASH BOROUGH COUNCIL,225979,Homelessness,Temporary Accommodation,29/03/21,NOVOTEL NOTTINGHAM,"1,200.08",Apr-21
EREWASH BOROUGH COUNCIL,225315,ICT Support Services,GIS Software Licences,29/03/21,CDR GROUP,"2,680.00",Apr-21
EREWASH BOROUGH COUNCIL,226097,Council Tax Collection,Fees Costs and Expenses,19/04/21,PENHAM EXCEL LIMITED,0.00,Apr-21
EREWASH BOROUGH COUNCIL,226211,Council Tax Collection,Fees Costs and Expenses,12/04/21,WILKIN CHAPMAN LLP,706.50,Apr-21
EREWASH BOROUGH COUNCIL,225195,Parish Council Concurrent Functions,Breaston - Precept,26/03/21,BREASTON PARISH COUNCIL,"45,976.00",Apr-21
EREWASH BOROUGH COUNCIL,225198,Parish Precepts,Little Eaton - Precept,26/03/21,LITTLE EATON PARISH COUNCIL,"17,365.00",Apr-21
EREWASH BOROUGH COUNCIL,225200,Parish Council Concurrent Functions,Ockbrook - Precept,26/03/21,OCKBROOK AND BORROWASH PARISH COUNCIL,"23,732.00",Apr-21
EREWASH BOROUGH COUNCIL,225201,Parish Precepts,Risley - Precept,26/03/21,RISLEY WITH HOPWELL PARISH COUNCIL,"10,000.00",Apr-21
EREWASH BOROUGH COUNCIL,225206,Parish Precepts,West Hallam - Precept,26/03/21,WEST HALLAM PARISH COUNCIL,"40,778.00",Apr-21
EREWASH BOROUGH COUNCIL,225334,Trees Hedges and Local Nature Reserves,Contracted Services,23/03/21,TOM RICHARDS TREE SERVICES,"10,385.00",Apr-21
EREWASH BOROUGH COUNCIL,225816,Trees Hedges and Local Nature Reserves,Contracted Services,31/03/21,TOM RICHARDS TREE SERVICES,999.75,Apr-21
EREWASH BOROUGH COUNCIL,225053,Watercourse Maintenance,Contracted Services,15/03/21,T H HEATH  CONTRACTS  LTD,236.00,Apr-21
EREWASH BOROUGH COUNCIL,225854,Green Space,Contracted Services,26/03/21,PLAYDALE PLAYGROUNDS LTD,31.18,Apr-21
EREWASH BOROUGH COUNCIL,226159,Economic Development,Contracted Services,01/04/21,PROXIMITY FUTURES T/A ELEPHANT WIFI,303.33,Apr-21
EREWASH BOROUGH COUNCIL,225771,Leisure Contract,Contracted Services,05/03/21,PARKWOOD LEISURE LTD,"85,142.00",Apr-21
EREWASH BOROUGH COUNCIL,226288,Homelessness,Homelessness-Lease Properties,01/02/21,EMH HOMES,"1,142.62",Apr-21
EREWASH BOROUGH COUNCIL,226289,Homelessness,Homelessness-Lease Properties,01/02/21,EMH HOMES,"1,170.53",Apr-21
EREWASH BOROUGH COUNCIL,225219,Homelessness,Agency Staff,17/03/21,GREENACRE RECRUITMENT,416.89,Apr-21
EREWASH BOROUGH COUNCIL,225219,Homelessness,Agency Staff,17/03/21,GREENACRE RECRUITMENT,608.01,Apr-21
EREWASH BOROUGH COUNCIL,225220,Homelessness,Agency Staff,24/03/21,GREENACRE RECRUITMENT,599.80,Apr-21
EREWASH BOROUGH COUNCIL,226124,Kerbside Dry Recycling Collection,Agency Staff,15/04/21,QUALITY SERVICE RECRUITMENT LTD,477.08,Apr-21
EREWASH BOROUGH COUNCIL,225110,Green Space,Agency Staff,16/03/21,KEEP BRITAIN TIDY,439.00,Apr-21
EREWASH BOROUGH COUNCIL,226306,Public Conveniences,Agency Staff,08/03/21,EXTRA PERSONNEL LTD,675.22,Apr-21
EREWASH BOROUGH COUNCIL,226021,Household/Residual Waste Collection,Agency Staff,30/03/21,THORN BAKER LIMITED,"2,232.21",Apr-21
EREWASH BOROUGH COUNCIL,225157,West Park Leisure Centre,Planned Preventative Maintenance,22/03/21,ALPHA PARTNER (MIDLANDS)  LIMITED,"10,030.95",Apr-21
EREWASH BOROUGH COUNCIL,225146,Property and Estates,Repairs and Maintenance,17/03/21,MDB PLUMBING (NOTTM) LTD,530.30,Apr-21
EREWASH BOROUGH COUNCIL,225055,Erewash Museum,Electricity,15/03/21,TOTAL GAS & POWER LTD,188.60,Apr-21
EREWASH BOROUGH COUNCIL,225056,Long Eaton Market,Electricity,15/03/21,TOTAL GAS & POWER LTD,153.39,Apr-21
EREWASH BOROUGH COUNCIL,225055,Shopmobility - Long Eaton,Electricity,15/03/21,TOTAL GAS & POWER LTD,205.00,Apr-21
EREWASH BOROUGH COUNCIL,225056,Green Space,Electricity,15/03/21,TOTAL GAS & POWER LTD,513.85,Apr-21
EREWASH BOROUGH COUNCIL,225075,Rutland Sports Park,Gas,12/03/21,TOTAL GAS & POWER LTD,217.21,Apr-21
EREWASH BOROUGH COUNCIL,226295,Allotments,Metered Water,01/04/21,SCOTTISH WATER BUSINESS STREAM LIMITED,34.52,Apr-21
EREWASH BOROUGH COUNCIL,226138,Corporate Health and Safety,Water Testing (Legionella),30/03/21,STERILIZING SERVICES LTD,927.60,Apr-21
EREWASH BOROUGH COUNCIL,226260,Balance Sheet,ICT Works,18/04/21,MACILDOWIE RECRUITMENT EXPERTISE,"1,211.97",Apr-21
EREWASH BOROUGH COUNCIL,226111,Balance Sheet,Grant Payments,08/03/21,DERBYSHIRE COUNTY COUNCIL...,"4,335.84",Apr-21
EREWASH BOROUGH COUNCIL,226282,Balance Sheet,Fuel Store,15/04/21,CERTAS ENERGY UK LIMITED T/A CARLTON FUELS,"3,592.03",Apr-21
EREWASH BOROUGH COUNCIL,225375,Balance Sheet,COVID 19 - Additional Restrictions Grant,31/03/21,STEVE DEERY BOOKS,393.00,Apr-21
EREWASH BOROUGH COUNCIL,225637,Balance Sheet,COVID 19 - Additional Restrictions Grant,31/03/21,MOMMAS SOUL FOOD KITCHEN,393.00,Apr-21
EREWASH BOROUGH COUNCIL,225650,Balance Sheet,COVID 19 - Additional Restrictions Grant,31/03/21,USA CHICKEN EXPRESS,393.00,Apr-21
EREWASH BOROUGH COUNCIL,225383,Balance Sheet,COVID 19 - Additional Restrictions Grant,31/03/21,NU-DRIVE,393.00,Apr-21
EREWASH BOROUGH COUNCIL,225397,Balance Sheet,COVID 19 - Additional Restrictions Grant,31/03/21,REDACTED PERSONAL DATA,393.00,Apr-21
EREWASH BOROUGH COUNCIL,225407,Balance Sheet,COVID 19 - Additional Restrictions Grant,31/03/21,MODERN MOTORCYCLES,393.00,Apr-21
EREWASH BOROUGH COUNCIL,225408,Balance Sheet,COVID 19 - Additional Restrictions Grant,31/03/21,STARK INCORPORATED LIMITED,393.00,Apr-21
EREWASH BOROUGH COUNCIL,225421,Balance Sheet,COVID 19 - Additional Restrictions Grant,31/03/21,J WILTON DRIVING INSTRUCTOR,393.00,Apr-21
EREWASH BOROUGH COUNCIL,225422,Balance Sheet,COVID 19 - Additional Restrictions Grant,31/03/21,EMPIRE AUTOMATIC DRIVING SCHOOL,393.00,Apr-21
EREWASH BOROUGH COUNCIL,225413,Balance Sheet,COVID 19 - Additional Restrictions Grant,31/03/21,REDACTED PERSONAL DATA,393.00,Apr-21
EREWASH BOROUGH COUNCIL,225414,Balance Sheet,COVID 19 - Additional Restrictions Grant,31/03/21,REDACTED PERSONAL DATA,393.00,Apr-21
EREWASH BOROUGH COUNCIL,225569,Balance Sheet,COVID 19 - Additional Restrictions Grant,31/03/21,APPOLO DJS,393.00,Apr-21
EREWASH BOROUGH COUNCIL,225574,Balance Sheet,COVID 19 - Additional Restrictions Grant,31/03/21,QUICKBITS REVIVAL LIMITED,393.00,Apr-21
EREWASH BOROUGH COUNCIL,225709,Balance Sheet,COVID 19 - Additional Restrictions Grant,31/03/21,REDACTED PERSONAL DATA,393.00,Apr-21
EREWASH BOROUGH COUNCIL,225439,Balance Sheet,COVID 19 - Additional Restrictions Grant,31/03/21,REDACTED PERSONAL DATA,393.00,Apr-21
EREWASH BOROUGH COUNCIL,225442,Balance Sheet,COVID 19 - Additional Restrictions Grant,31/03/21,A & K ENTERTAINMENTS,393.00,Apr-21
EREWASH BOROUGH COUNCIL,225443,Balance Sheet,COVID 19 - Additional Restrictions Grant,31/03/21,DB SPORTS MASSAGE THERAPY,393.00,Apr-21
EREWASH BOROUGH COUNCIL,225447,Balance Sheet,COVID 19 - Additional Restrictions Grant,31/03/21,PRECISION FLOW SCREED LTD,589.00,Apr-21
EREWASH BOROUGH COUNCIL,225579,Balance Sheet,COVID 19 - Additional Restrictions Grant,31/03/21,BEAUMONT INDUSTRIES,393.00,Apr-21
EREWASH BOROUGH COUNCIL,225603,Balance Sheet,COVID 19 - Additional Restrictions Grant,31/03/21,IRFAN HAMID T/A TAXI DRIVER,393.00,Apr-21
EREWASH BOROUGH COUNCIL,225612,Balance Sheet,COVID 19 - Additional Restrictions Grant,31/03/21,WAY AHEAD,393.00,Apr-21
EREWASH BOROUGH COUNCIL,225614,Balance Sheet,COVID 19 - Additional Restrictions Grant,31/03/21,THE BEAUTY RETREAT,393.00,Apr-21
EREWASH BOROUGH COUNCIL,225625,Balance Sheet,COVID 19 - Additional Restrictions Grant,31/03/21,ONESTOPCARSHOPUK LIMITED,393.00,Apr-21
EREWASH BOROUGH COUNCIL,225628,Balance Sheet,COVID 19 - Additional Restrictions Grant,31/03/21,ANGUS TREE CARE,393.00,Apr-21
EREWASH BOROUGH COUNCIL,225657,Balance Sheet,COVID 19 - Additional Restrictions Grant,31/03/21,INDEPENDENCE-DRIVING SCHOOL,393.00,Apr-21
EREWASH BOROUGH COUNCIL,225658,Balance Sheet,COVID 19 - Additional Restrictions Grant,31/03/21,G L D AESTHETICS,393.00,Apr-21
EREWASH BOROUGH COUNCIL,225660,Balance Sheet,COVID 19 - Additional Restrictions Grant,31/03/21,REDACTED PERSONAL DATA,393.00,Apr-21
EREWASH BOROUGH COUNCIL,225663,Balance Sheet,COVID 19 - Additional Restrictions Grant,31/03/21,ALAN MCGOWAN ARCHITECTS LTD,393.00,Apr-21
EREWASH BOROUGH COUNCIL,225670,Balance Sheet,COVID 19 - Additional Restrictions Grant,31/03/21,ATHERTON SIGNS & INSTALLATIONS LIMITED,393.00,Apr-21
EREWASH BOROUGH COUNCIL,225674,Balance Sheet,COVID 19 - Additional Restrictions Grant,31/03/21,SELINA'S MOBILE BEAUTY,393.00,Apr-21
EREWASH BOROUGH COUNCIL,225686,Balance Sheet,COVID 19 - Additional Restrictions Grant,31/03/21,MEL CRAFF DRIVING SCHOOL,393.00,Apr-21
EREWASH BOROUGH COUNCIL,225436,Balance Sheet,COVID 19 - Additional Restrictions Grant,31/03/21,HORNSTONE ENGLAND,393.00,Apr-21
EREWASH BOROUGH COUNCIL,225466,Balance Sheet,COVID 19 - Additional Restrictions Grant,31/03/21,REDACTED PERSONAL DATA,393.00,Apr-21
EREWASH BOROUGH COUNCIL,225479,Balance Sheet,COVID 19 - Additional Restrictions Grant,31/03/21,DESIGNZ,393.00,Apr-21
EREWASH BOROUGH COUNCIL,225485,Balance Sheet,COVID 19 - Additional Restrictions Grant,31/03/21,A ROBINSON AND SONS,393.00,Apr-21
EREWASH BOROUGH COUNCIL,225498,Balance Sheet,COVID 19 - Additional Restrictions Grant,31/03/21,AMK AUTOMOTIVE SOLUTIONS,393.00,Apr-21
EREWASH BOROUGH COUNCIL,225510,Balance Sheet,COVID 19 - Additional Restrictions Grant,31/03/21,POSH CAR LTD,393.00,Apr-21
EREWASH BOROUGH COUNCIL,225526,Balance Sheet,COVID 19 - Additional Restrictions Grant,31/03/21,KC JONES CONFERENCE & EVENTS LTD,589.00,Apr-21
EREWASH BOROUGH COUNCIL,225539,Balance Sheet,COVID 19 - Additional Restrictions Grant,31/03/21,POSH NOSH (EAST MIDLANDS) LTD,589.00,Apr-21
EREWASH BOROUGH COUNCIL,226329,Balance Sheet,COVID 19 - Additional Restrictions Grant,28/04/21,PENNARTON LTD,"3,464.00",Apr-21
EREWASH BOROUGH COUNCIL,226333,Balance Sheet,COVID 19 - Additional Restrictions Grant,28/04/21,REDACTED PERSONAL DATA,500.00,Apr-21
EREWASH BOROUGH COUNCIL,226337,Balance Sheet,COVID 19 - Additional Restrictions Grant,29/04/21,JULIA FITNESS CLASSES,500.00,Apr-21
EREWASH BOROUGH COUNCIL,226339,Balance Sheet,COVID 19 - Additional Restrictions Grant,29/04/21,REDACTED PERSONAL DATA,"1,732.00",Apr-21
EREWASH BOROUGH COUNCIL,226341,Balance Sheet,COVID 19 - Additional Restrictions Grant,29/04/21,REDACTED PERSONAL DATA,"3,464.00",Apr-21
EREWASH BOROUGH COUNCIL,226342,Balance Sheet,COVID 19 - Additional Restrictions Grant,29/04/21,REDACTED PERSONAL DATA,"3,464.00",Apr-21
EREWASH BOROUGH COUNCIL,226343,Balance Sheet,COVID 19 - Additional Restrictions Grant,29/04/21,REDACTED PERSONAL DATA,"3,464.00",Apr-21
EREWASH BOROUGH COUNCIL,226357,Balance Sheet,COVID 19 - Additional Restrictions Grant,29/04/21,ALL SEASONS CLEAN LTD,"3,464.00",Apr-21
EREWASH BOROUGH COUNCIL,226362,Balance Sheet,COVID 19 - Additional Restrictions Grant,29/04/21,ILSON FIGHT UNIT LIMITED,"3,464.00",Apr-21
EREWASH BOROUGH COUNCIL,226366,Balance Sheet,COVID 19 - Additional Restrictions Grant,29/04/21,REDACTED PERSONAL DATA,"3,464.00",Apr-21
EREWASH BOROUGH COUNCIL,225762,Car Parking,Credit/Debit Card Charges,28/02/21,INTERNATIONAL PARKING SYSTEMS UK LTD,410.68,Apr-21
EREWASH BOROUGH COUNCIL,226171,Green Space,Repairs and Maintenance,16/03/21,COUNTRYWIDE MIDLANDS LIMITED,309.12,Apr-21
EREWASH BOROUGH COUNCIL,225902,Household/Residual Waste Collection,Repairs and Maintenance,18/03/21,DENNIS EAGLE LTD,486.00,Apr-21
EREWASH BOROUGH COUNCIL,226109,Household/Residual Waste Collection,Repairs and Maintenance,31/03/21,ENVA ENGLAND SPECIALIST WASTE LIMITED,195.00,Apr-21
EREWASH BOROUGH COUNCIL,225769,Kerbside Dry Recycling Collection,Repairs and Maintenance,29/03/21,DENNIS EAGLE LTD,419.36,Apr-21
EREWASH BOROUGH COUNCIL,225860,Street Scene,Tyres,27/02/21,LODGE TYRE COMPANY LTD,282.00,Apr-21
EREWASH BOROUGH COUNCIL,225161,ICT Support Services,General Equipment,18/03/21,CCS MEDIA LIMITED,454.64,Apr-21
EREWASH BOROUGH COUNCIL,225162,ICT Support Services,General Equipment,18/03/21,CCS MEDIA LIMITED,294.56,Apr-21
EREWASH BOROUGH COUNCIL,225162,Payments,General Equipment,18/03/21,CCS MEDIA LIMITED,126.24,Apr-21
EREWASH BOROUGH COUNCIL,226300,Performance Management,General Equipment,27/04/21,LOCAL GOVERNMENT ASSOCIATION,50.00,Apr-21
EREWASH BOROUGH COUNCIL,226214,ICT Support Services,Maintenance of Equipment,30/03/21,TWOFOLD LIMITED,"1,701.20",Apr-21
EREWASH BOROUGH COUNCIL,225803,Green Space,Materials/Consumables,30/03/21,STEELCRAFT FABRICATIONS,220.00,Apr-21
EREWASH BOROUGH COUNCIL,225080,Cemeteries,Materials/Consumables,12/03/21,STEELCRAFT FABRICATIONS,"1,170.00",Apr-21
EREWASH BOROUGH COUNCIL,225234,Street Scene,Materials/Consumables,10/03/21,BANNER GROUP LIMITED,0.15,Apr-21
EREWASH BOROUGH COUNCIL,225955,Street Scene,Materials/Consumables,18/02/21,ACTON TIMBER YARD LIMITED,150.00,Apr-21
EREWASH BOROUGH COUNCIL,225750,Community Services,Reference Literature and Publications,25/02/21,RICARDO-AEA LTD,648.50,Apr-21
EREWASH BOROUGH COUNCIL,225980,Homelessness,Temporary Accommodation,01/04/21,NOVOTEL NOTTINGHAM,521.50,Apr-21
EREWASH BOROUGH COUNCIL,226320,Insurances - (Corporate matters only),Insurance - General,25/03/21,MARSH LTD,"79,095.52",Apr-21
EREWASH BOROUGH COUNCIL,226321,Insurances - (Corporate matters only),Insurance - General,25/03/21,MARSH LTD,"1,891.27",Apr-21
EREWASH BOROUGH COUNCIL,225789,Atmospheric Pollution,Nitrogen Dioxide Survey,29/03/21,SOUTH DERBYSHIRE DISTRICT COUNCIL,"1,496.95",Apr-21
EREWASH BOROUGH COUNCIL,225909,Civic Accommodation - Ilkeston,Sanitary Services,31/03/21,RENTOKIL INITIAL SERVICES LIMITED,31.48,Apr-21
EREWASH BOROUGH COUNCIL,226230,ICT Support Services,Mobile Phones,01/04/21,CLASS AFFINITY PROJECTS LTD,"2,257.34",Apr-21
EREWASH BOROUGH COUNCIL,225964,Revenues and Benefits,Postages,07/04/21,ROYAL MAIL GROUP LTD.,"1,424.12",Apr-21
EREWASH BOROUGH COUNCIL,225965,Revenues and Benefits,Postages,06/04/21,ROYAL MAIL GROUP LTD.,341.67,Apr-21
EREWASH BOROUGH COUNCIL,226212,Revenues and Benefits,Postages,21/04/21,ROYAL MAIL GROUP LTD.,"2,103.53",Apr-21
EREWASH BOROUGH COUNCIL,226113,Council Tax Collection,Fees Costs and Expenses,31/03/21,INFORM CPI LTD,800.00,Apr-21
EREWASH BOROUGH COUNCIL,225195,Parish Precepts,Breaston - Precept,26/03/21,BREASTON PARISH COUNCIL,"51,840.00",Apr-21
EREWASH BOROUGH COUNCIL,225196,Parish Precepts,Dale Abbey - Precept,26/03/21,DALE ABBEY PARISH COUNCIL,"10,780.00",Apr-21
EREWASH BOROUGH COUNCIL,225199,Parish Council Concurrent Functions,Morley - Precept,26/03/21,MORLEY PARISH COUNCIL,"1,359.00",Apr-21
EREWASH BOROUGH COUNCIL,225203,Parish Precepts,Sawley - Precept,26/03/21,SAWLEY PARISH COUNCIL,"46,709.00",Apr-21
EREWASH BOROUGH COUNCIL,225204,Parish Precepts,Stanley - Precept,26/03/21,STANLEY & STANLEY COMMON PARISH COUNCIL,"18,342.45",Apr-21
EREWASH BOROUGH COUNCIL,226088,Non Ring Fenced Government Grants,Revenue Support Grant,22/03/21,MHCLG,"-8,438.00",Apr-21
EREWASH BOROUGH COUNCIL,226285,Car Parking,Contracted Services,31/03/21,KINGS ARMOURED SECURITY SERVICES,"1,529.15",Apr-21
EREWASH BOROUGH COUNCIL,225842,Neighbourhood Wardens,Contracted Services,21/03/21,EFFECTIVE SECURITY SERVICES LTD,"3,224.00",Apr-21
EREWASH BOROUGH COUNCIL,225854,Street Scene,Bins,26/03/21,PLAYDALE PLAYGROUNDS LTD,356.82,Apr-21
EREWASH BOROUGH COUNCIL,225218,Homelessness,Agency Staff,10/03/21,GREENACRE RECRUITMENT,416.89,Apr-21
EREWASH BOROUGH COUNCIL,225220,Homelessness,Agency Staff,24/03/21,GREENACRE RECRUITMENT,411.25,Apr-21
EREWASH BOROUGH COUNCIL,225929,Transport Trading Account,Agency Staff,15/03/21,QUESTECH RECRUITMENT LTD,906.50,Apr-21
EREWASH BOROUGH COUNCIL,225930,Transport Trading Account,Agency Staff,06/04/21,QUESTECH RECRUITMENT LTD,784.00,Apr-21
EREWASH BOROUGH COUNCIL,225932,Transport Trading Account,Agency Staff,08/03/21,QUESTECH RECRUITMENT LTD,906.50,Apr-21
EREWASH BOROUGH COUNCIL,225951,Transport Trading Account,Agency Staff,29/03/21,QUESTECH RECRUITMENT LTD,906.50,Apr-21
EREWASH BOROUGH COUNCIL,225740,Urban Renewal,Agency Staff,17/02/21,OSBORNE RICHARDSON,"1,181.50",Apr-21
EREWASH BOROUGH COUNCIL,225743,Urban Renewal,Agency Staff,10/03/21,OSBORNE RICHARDSON,"1,258.00",Apr-21
EREWASH BOROUGH COUNCIL,225933,Green Space,Agency Staff,22/03/21,EXTRA PERSONNEL LTD,"1,517.08",Apr-21
EREWASH BOROUGH COUNCIL,226124,Household/Residual Waste Collection,Agency Staff,15/04/21,QUALITY SERVICE RECRUITMENT LTD,715.61,Apr-21
EREWASH BOROUGH COUNCIL,226259,Household/Residual Waste Collection,Agency Staff,29/03/21,EXTRA PERSONNEL LTD,"4,201.51",Apr-21
EREWASH BOROUGH COUNCIL,225826,Kerbside Dry Recycling Collection,Agency Staff,17/03/21,THORN BAKER LIMITED,"1,445.21",Apr-21
EREWASH BOROUGH COUNCIL,225828,Kerbside Dry Recycling Collection,Agency Staff,18/03/21,QUALITY SERVICE RECRUITMENT LTD,389.08,Apr-21
EREWASH BOROUGH COUNCIL,225831,Kerbside Dry Recycling Collection,Agency Staff,08/03/21,EXTRA PERSONNEL LTD,199.95,Apr-21
EREWASH BOROUGH COUNCIL,226022,Kerbside Dry Recycling Collection,Agency Staff,22/03/21,EXTRA PERSONNEL LTD,"2,015.46",Apr-21
EREWASH BOROUGH COUNCIL,225829,Household/Residual Waste Collection,Agency Staff,25/03/21,QUALITY SERVICE RECRUITMENT LTD,651.13,Apr-21
EREWASH BOROUGH COUNCIL,226023,Household/Residual Waste Collection,Agency Staff,21/12/20,EXTRA PERSONNEL LTD,"3,369.47",Apr-21
EREWASH BOROUGH COUNCIL,225234,Green Space,Training,10/03/21,BANNER GROUP LIMITED,145.00,Apr-21
EREWASH BOROUGH COUNCIL,225076,Pedestrian Zones - Ilkeston and Long Eaton,Planned Preventative Maintenance,17/03/21,STEELCRAFT FABRICATIONS,500.00,Apr-21
EREWASH BOROUGH COUNCIL,225055,Civic Accommodation - Ilkeston,Electricity,15/03/21,TOTAL GAS & POWER LTD,399.06,Apr-21
EREWASH BOROUGH COUNCIL,225056,Civic Accommodation - Ilkeston,Electricity,15/03/21,TOTAL GAS & POWER LTD,"1,252.43",Apr-21
EREWASH BOROUGH COUNCIL,225056,Sandiacre Friesland Sports Centre,Electricity,15/03/21,TOTAL GAS & POWER LTD,264.16,Apr-21
EREWASH BOROUGH COUNCIL,225055,Green Space,Electricity,15/03/21,TOTAL GAS & POWER LTD,"3,665.11",Apr-21
EREWASH BOROUGH COUNCIL,225075,Green Space,Gas,12/03/21,TOTAL GAS & POWER LTD,701.70,Apr-21
EREWASH BOROUGH COUNCIL,225075,Civic Accommodation - Ilkeston,Gas,12/03/21,TOTAL GAS & POWER LTD,"2,490.92",Apr-21
EREWASH BOROUGH COUNCIL,226295,Shopmobility - Ilkeston,Metered Water,01/04/21,SCOTTISH WATER BUSINESS STREAM LIMITED,37.76,Apr-21
EREWASH BOROUGH COUNCIL,226295,Green Space,Metered Water,01/04/21,SCOTTISH WATER BUSINESS STREAM LIMITED,534.57,Apr-21
EREWASH BOROUGH COUNCIL,225768,Balance Sheet,Building Works,19/03/21,PER CONSULTING LIMITED,"6,500.00",Apr-21
EREWASH BOROUGH COUNCIL,225957,Balance Sheet,ICT Works,11/04/21,MACILDOWIE RECRUITMENT EXPERTISE,"1,049.81",Apr-21
EREWASH BOROUGH COUNCIL,226309,Balance Sheet,ICT Works,31/03/21,ADVANCED BUSINESS SOFTWARE & SOLUTIONS LIMITED,497.51,Apr-21
EREWASH BOROUGH COUNCIL,225942,Balance Sheet,Apprenticeship Levy,13/04/21,HMRC CUMBERNAULD,"3,484.00",Apr-21
EREWASH BOROUGH COUNCIL,225642,Balance Sheet,COVID 19 - Additional Restrictions Grant,31/03/21,REDACTED PERSONAL DATA,393.00,Apr-21
EREWASH BOROUGH COUNCIL,225646,Balance Sheet,COVID 19 - Additional Restrictions Grant,31/03/21,IN YOUR CORNER LIMITED,393.00,Apr-21
EREWASH BOROUGH COUNCIL,225380,Balance Sheet,COVID 19 - Additional Restrictions Grant,31/03/21,REDACTED PERSONAL DATA,393.00,Apr-21
EREWASH BOROUGH COUNCIL,225417,Balance Sheet,COVID 19 - Additional Restrictions Grant,31/03/21,SHED 2 STUDIOS,393.00,Apr-21
EREWASH BOROUGH COUNCIL,225423,Balance Sheet,COVID 19 - Additional Restrictions Grant,31/03/21,WINDMILL BUILDERS.,393.00,Apr-21
EREWASH BOROUGH COUNCIL,225428,Balance Sheet,COVID 19 - Additional Restrictions Grant,31/03/21,REDACTED PERSONAL DATA,393.00,Apr-21
EREWASH BOROUGH COUNCIL,225432,Balance Sheet,COVID 19 - Additional Restrictions Grant,31/03/21,REDACTED PERSONAL DATA,393.00,Apr-21
EREWASH BOROUGH COUNCIL,225700,Balance Sheet,COVID 19 - Additional Restrictions Grant,31/03/21,THE BROW EDIT,393.00,Apr-21
EREWASH BOROUGH COUNCIL,225701,Balance Sheet,COVID 19 - Additional Restrictions Grant,31/03/21,LIFESTYLE1.COM LTD,393.00,Apr-21
EREWASH BOROUGH COUNCIL,225715,Balance Sheet,COVID 19 - Additional Restrictions Grant,31/03/21,TOUCH OF HEAVEN,393.00,Apr-21
EREWASH BOROUGH COUNCIL,225444,Balance Sheet,COVID 19 - Additional Restrictions Grant,31/03/21,REDACTED PERSONAL DATA,393.00,Apr-21
EREWASH BOROUGH COUNCIL,225452,Balance Sheet,COVID 19 - Additional Restrictions Grant,31/03/21,OUD LTD,393.00,Apr-21
EREWASH BOROUGH COUNCIL,225454,Balance Sheet,COVID 19 - Additional Restrictions Grant,31/03/21,D HARTFIELD DEVELOPMENTS LTD,393.00,Apr-21
EREWASH BOROUGH COUNCIL,225455,Balance Sheet,COVID 19 - Additional Restrictions Grant,31/03/21,FAIRFIELD BOARDING CATTERY,393.00,Apr-21
EREWASH BOROUGH COUNCIL,225577,Balance Sheet,COVID 19 - Additional Restrictions Grant,31/03/21,PCC OF ST JOHNS CHURCH,393.00,Apr-21
EREWASH BOROUGH COUNCIL,225580,Balance Sheet,COVID 19 - Additional Restrictions Grant,31/03/21,NORTON PLASTICS LTD,589.00,Apr-21
EREWASH BOROUGH COUNCIL,225587,Balance Sheet,COVID 19 - Additional Restrictions Grant,31/03/21,STUARTS HAIR & BEAUTY,393.00,Apr-21
EREWASH BOROUGH COUNCIL,225591,Balance Sheet,COVID 19 - Additional Restrictions Grant,31/03/21,ODD EXHIBITIONS LTD,393.00,Apr-21
EREWASH BOROUGH COUNCIL,225594,Balance Sheet,COVID 19 - Additional Restrictions Grant,31/03/21,CRUISE-IN-CONTROL LIMITED,393.00,Apr-21
EREWASH BOROUGH COUNCIL,225610,Balance Sheet,COVID 19 - Additional Restrictions Grant,31/03/21,REDACTED PERSONAL DATA,393.00,Apr-21
EREWASH BOROUGH COUNCIL,225616,Balance Sheet,COVID 19 - Additional Restrictions Grant,31/03/21,COLUMBINE FARM KENNELS,393.00,Apr-21
EREWASH BOROUGH COUNCIL,225672,Balance Sheet,COVID 19 - Additional Restrictions Grant,31/03/21,REDACTED PERSONAL DATA,393.00,Apr-21
EREWASH BOROUGH COUNCIL,225679,Balance Sheet,COVID 19 - Additional Restrictions Grant,31/03/21,JKBODYREPAIRS,393.00,Apr-21
EREWASH BOROUGH COUNCIL,225688,Balance Sheet,COVID 19 - Additional Restrictions Grant,31/03/21,THE MILL SALON,393.00,Apr-21
EREWASH BOROUGH COUNCIL,225463,Balance Sheet,COVID 19 - Additional Restrictions Grant,31/03/21,LN BROWN T/A INSPIRATTI,393.00,Apr-21
EREWASH BOROUGH COUNCIL,225474,Balance Sheet,COVID 19 - Additional Restrictions Grant,31/03/21,REDACTED PERSONAL DATA,393.00,Apr-21
EREWASH BOROUGH COUNCIL,225483,Balance Sheet,COVID 19 - Additional Restrictions Grant,31/03/21,REDACTED PERSONAL DATA,393.00,Apr-21
EREWASH BOROUGH COUNCIL,225507,Balance Sheet,COVID 19 - Additional Restrictions Grant,31/03/21,REDACTED PERSONAL DATA,393.00,Apr-21
EREWASH BOROUGH COUNCIL,225523,Balance Sheet,COVID 19 - Additional Restrictions Grant,31/03/21,REDACTED PERSONAL DATA,393.00,Apr-21
EREWASH BOROUGH COUNCIL,225524,Balance Sheet,COVID 19 - Additional Restrictions Grant,31/03/21,CANTERBURY'S HOME IMPROVEMENTS,393.00,Apr-21
EREWASH BOROUGH COUNCIL,225531,Balance Sheet,COVID 19 - Additional Restrictions Grant,31/03/21,ARA JOINT VENTURES LTD,393.00,Apr-21
EREWASH BOROUGH COUNCIL,226331,Balance Sheet,COVID 19 - Additional Restrictions Grant,28/04/21,REDACTED PERSONAL DATA,"1,732.00",Apr-21
EREWASH BOROUGH COUNCIL,226349,Balance Sheet,COVID 19 - Additional Restrictions Grant,29/04/21,REDACTED PERSONAL DATA,"3,464.00",Apr-21
EREWASH BOROUGH COUNCIL,226359,Balance Sheet,COVID 19 - Additional Restrictions Grant,29/04/21,A M STAIRLIFTS LIMITED,"3,464.00",Apr-21
EREWASH BOROUGH COUNCIL,226338,Balance Sheet,COVID 19 - Additional Restrictions Grant,29/04/21,REDACTED PERSONAL DATA,"1,500.00",Apr-21
EREWASH BOROUGH COUNCIL,226198,Balance Sheet,Payroll Collection A/c - Attachment Orders,27/04/21,HMCTS,257.41,Apr-21
EREWASH BOROUGH COUNCIL,225059,Green Space,Project Grants,18/03/21,ALPHA PARTNER (MIDLANDS)  LIMITED,350.00,Apr-21
EREWASH BOROUGH COUNCIL,225795,Infectious Diseases and Food Poisoning,Work In Default,08/02/21,AW LYMN LTD,"1,430.00",Apr-21
EREWASH BOROUGH COUNCIL,225273,Property and Estates,Reactive Maintenance,24/03/21,STEELCRAFT FABRICATIONS,210.00,Apr-21
EREWASH BOROUGH COUNCIL,226227,Shopmobility - Long Eaton,PPM Mechanical and Equipment,31/03/21,PEEL ELECTRICAL LTD,122.32,Apr-21
EREWASH BOROUGH COUNCIL,225953,Erewash Museum,PPM Mechanical and Equipment,06/04/21,CONCEPT ELEVATORS (UK) LTD,43.00,Apr-21
EREWASH BOROUGH COUNCIL,225822,Property and Estates,PPM Mechanical and Equipment,30/03/21,NORWOOD ELECTRICAL UK LTD,747.72,Apr-21
EREWASH BOROUGH COUNCIL,226109,Street Scene,Repairs and Maintenance,31/03/21,ENVA ENGLAND SPECIALIST WASTE LIMITED,15.00,Apr-21
EREWASH BOROUGH COUNCIL,226043,Household/Residual Waste Collection,Repairs and Maintenance,31/03/21,WILLIAM WEST & SONS (ILKESTON) LIMITED,656.52,Apr-21
EREWASH BOROUGH COUNCIL,225872,Household/Residual Waste Collection,Repairs and Maintenance,30/03/21,DENNIS EAGLE LTD,532.09,Apr-21
EREWASH BOROUGH COUNCIL,225154,Planning Policy,General Equipment,18/03/21,CCS MEDIA LIMITED,589.90,Apr-21
EREWASH BOROUGH COUNCIL,225232,ICT Support Services,Equipment Leasing Charge,23/03/21,KYOCERA DOCUMENT SOLUTIONS (UK) LTD,"2,634.42",Apr-21
EREWASH BOROUGH COUNCIL,224999,Green Space,Materials/Consumables,16/03/21,KEEP BRITAIN TIDY,329.00,Apr-21
EREWASH BOROUGH COUNCIL,225809,Green Space,Materials/Consumables,29/03/21,PROTECTIVE WEAR SUPPLIES LTD,257.92,Apr-21
EREWASH BOROUGH COUNCIL,225878,Green Space,Materials/Consumables,30/03/21,NOMIX ENVIRO LIMITED,330.20,Apr-21
EREWASH BOROUGH COUNCIL,225290,Play Areas,Materials/Consumables,29/03/21,FCC RECYCLING (UK) LTD,"7,525.00",Apr-21
EREWASH BOROUGH COUNCIL,226143,Dog Control,Uniforms,01/04/21,EREWASH PARTNERSHIP LTD,205.92,Apr-21
EREWASH BOROUGH COUNCIL,225775,Reprographics,Printing and Stationery,30/03/21,ANTALIS DOCUMENT SUPPLIES,234.16,Apr-21
EREWASH BOROUGH COUNCIL,226247,Homelessness,Temporary Accommodation,01/04/21,NOVOTEL NOTTINGHAM,342.88,Apr-21
EREWASH BOROUGH COUNCIL,225981,Homelessness,Temporary Accommodation,01/04/21,NOVOTEL NOTTINGHAM,"1,328.66",Apr-21
EREWASH BOROUGH COUNCIL,226019,Homelessness,Temporary Accommodation,23/03/21,DERBY GUESTHOUSE LIMITED,240.00,Apr-21
EREWASH BOROUGH COUNCIL,226008,Homelessness,Temporary Accommodation,23/03/21,TUDOR LODGE HOTEL,291.67,Apr-21
EREWASH BOROUGH COUNCIL,226010,Homelessness,Temporary Accommodation,15/03/21,TUDOR LODGE HOTEL,208.34,Apr-21
EREWASH BOROUGH COUNCIL,226014,Homelessness,Temporary Accommodation,28/12/20,REDACTED PERSONAL DATA,840.00,Apr-21
EREWASH BOROUGH COUNCIL,226073,Development Control - Fee Earning,Consultants Fees,01/04/21,DAVID HUGHES AGRICULTURAL CONSULTANCY LTD,300.00,Apr-21
EREWASH BOROUGH COUNCIL,226317,Insurances - (Corporate matters only),Insurance - General,26/04/21,MARSH LTD,"86,448.36",Apr-21
EREWASH BOROUGH COUNCIL,225799,Civic Accommodation - Ilkeston,Paper Recycling and Shredding,23/10/20,NOTTINGHAM CITY COUNCIL..,432.00,Apr-21
EREWASH BOROUGH COUNCIL,225909,Shopmobility - Long Eaton,Sanitary Services,31/03/21,RENTOKIL INITIAL SERVICES LIMITED,1.46,Apr-21
EREWASH BOROUGH COUNCIL,225163,ICT Support Services,Network Equipment & Cabling,17/03/21,CCS MEDIA LIMITED,912.00,Apr-21
EREWASH BOROUGH COUNCIL,225772,Revenues and Benefits,Software Licences,26/03/21,IEG4 LIMITED,"25,900.00",Apr-21
EREWASH BOROUGH COUNCIL,226076,Front Line Support Services,Software Licences,07/04/21,CAPITA,"9,219.32",Apr-21
EREWASH BOROUGH COUNCIL,225722,Trade Waste,Waste Disposal,23/03/21,DERBYSHIRE COUNTY COUNCIL...,"142,794.04",Apr-21
EREWASH BOROUGH COUNCIL,225196,Parish Council Concurrent Functions,Dale Abbey - Precept,26/03/21,DALE ABBEY PARISH COUNCIL,"9,569.00",Apr-21
EREWASH BOROUGH COUNCIL,225197,Parish Council Concurrent Functions,Draycott - Precept,26/03/21,DRAYCOTT PARISH COUNCIL,"30,171.00",Apr-21
EREWASH BOROUGH COUNCIL,225200,Parish Precepts,Ockbrook - Precept,26/03/21,OCKBROOK AND BORROWASH PARISH COUNCIL,"88,168.00",Apr-21
EREWASH BOROUGH COUNCIL,225879,Building Control - Advice and Information,Contracted Services,01/04/21,RANSOMWOOD ESTATES UK LIMITED,531.67,Apr-21
EREWASH BOROUGH COUNCIL,226079,Building Control - Advice and Information,Contracted Services,07/04/21,MANSFIELD DISTRICT COUNCIL,"2,251.38",Apr-21
EREWASH BOROUGH COUNCIL,224870,Allotments,Contracted Services,10/03/21,CROMWELL POLYTHENE LTD,354.28,Apr-21
EREWASH BOROUGH COUNCIL,226145,Car Parking,Contracted Services,01/04/21,METRIC GROUP LTD,"1,464.75",Apr-21
EREWASH BOROUGH COUNCIL,225942,Personnel,Apprenticeship Levy,13/04/21,HMRC CUMBERNAULD,"-1,250.00",Apr-21
EREWASH BOROUGH COUNCIL,226147,Homelessness Prevention,Contribution to Shared Service,18/03/21,POLICE AND CRIME COMMISSIONER FOR DERBYSHIRE,"3,419.50",Apr-21
EREWASH BOROUGH COUNCIL,225744,Urban Renewal,Agency Staff,17/03/21,OSBORNE RICHARDSON,"1,258.00",Apr-21
EREWASH BOROUGH COUNCIL,225830,Urban Renewal,Agency Staff,31/03/21,OSBORNE RICHARDSON,"1,241.00",Apr-21
EREWASH BOROUGH COUNCIL,226024,Kerbside Dry Recycling Collection,Agency Staff,27/03/21,WORKCHAIN LTD,"1,076.85",Apr-21
EREWASH BOROUGH COUNCIL,226279,Green Space,Agency Staff,12/04/21,EXTRA PERSONNEL LTD,"2,315.36",Apr-21
EREWASH BOROUGH COUNCIL,226025,Street Scene,Agency Staff,29/03/21,EXTRA PERSONNEL LTD,"2,109.73",Apr-21
EREWASH BOROUGH COUNCIL,226072,Household/Residual Waste Collection,Agency Staff,08/04/21,QUALITY SERVICE RECRUITMENT LTD,74.31,Apr-21
EREWASH BOROUGH COUNCIL,226127,Household/Residual Waste Collection,Agency Staff,07/04/21,THORN BAKER LIMITED,"2,188.30",Apr-21
EREWASH BOROUGH COUNCIL,226017,Transport Trading Account,Agency Staff,02/04/21,TOTAL TRANSPORT COMPLIANCE,"1,500.00",Apr-21
EREWASH BOROUGH COUNCIL,226072,Kerbside Dry Recycling Collection,Agency Staff,08/04/21,QUALITY SERVICE RECRUITMENT LTD,700.00,Apr-21
EREWASH BOROUGH COUNCIL,226293,Training - Personnel Costs Only,Health and Safety Training,12/04/21,ABC FOOD LAW LTD,"1,170.00",Apr-21
EREWASH BOROUGH COUNCIL,226292,Training - Personnel Costs Only,Qualification Training,12/04/21,CIEH,"1,195.00",Apr-21
EREWASH BOROUGH COUNCIL,225719,Property and Estates,Repairs and Maintenance,30/03/21,MDB PLUMBING (NOTTM) LTD,394.09,Apr-21
EREWASH BOROUGH COUNCIL,225055,Long Eaton Market,Electricity,15/03/21,TOTAL GAS & POWER LTD,43.34,Apr-21
EREWASH BOROUGH COUNCIL,225055,Belvoir Close Maintenance,Electricity,15/03/21,TOTAL GAS & POWER LTD,26.99,Apr-21
EREWASH BOROUGH COUNCIL,225055,Public Clocks,Electricity,15/03/21,TOTAL GAS & POWER LTD,17.84,Apr-21
EREWASH BOROUGH COUNCIL,225055,Pewit Golf Course,Electricity,15/03/21,TOTAL GAS & POWER LTD,65.25,Apr-21
EREWASH BOROUGH COUNCIL,226295,Public Conveniences,Metered Water,01/04/21,SCOTTISH WATER BUSINESS STREAM LIMITED,"1,236.48",Apr-21
EREWASH BOROUGH COUNCIL,226295,Sandiacre Friesland Sports Centre,Metered Water,01/04/21,SCOTTISH WATER BUSINESS STREAM LIMITED,102.85,Apr-21
EREWASH BOROUGH COUNCIL,226295,Rutland Sports Park,Metered Water,01/04/21,SCOTTISH WATER BUSINESS STREAM LIMITED,68.14,Apr-21
EREWASH BOROUGH COUNCIL,226295,Cotmanhay Pavilion,Unmetered Water,01/04/21,SCOTTISH WATER BUSINESS STREAM LIMITED,61.12,Apr-21
EREWASH BOROUGH COUNCIL,225774,Balance Sheet,ICT Works,14/03/21,MACILDOWIE RECRUITMENT EXPERTISE,"1,109.55",Apr-21
EREWASH BOROUGH COUNCIL,226310,Balance Sheet,ICT Works,31/03/21,ADVANCED BUSINESS SOFTWARE & SOLUTIONS LIMITED,"5,472.66",Apr-21
